Workbook

Sheet Daniels Tables
B2: =IF($B$4,"Height (cm):","Height (in):") -> Height (cm): | C2: 180 | D2: Birthdate: | E2: 1983-02-02 | G2: Daniels' Training Tables Rev3.01.01 | Q2: Last Update: | R2: 2018-12-19
B3: ="Weight"&IF($B$4," (kg):"," (lb):") -> Weight (kg): | C3: 75 | D3: HRmax: | E3: 188 | P3: =P73 -> Male Peak Potential - 10k | S3: Custom
B4: TRUE | C4: TRUE | D4: Rest HR: | E4: 43 | G4: A Collection of Jack Daniels' Related Guidelines (& Other Tools) | P4: ="Open Class Standard:" -> Open Class Standard: | R4: =R74 -> 0.01855324074 | S4: Distance | U4: ` | W4: Colums to hide
B5: Valid age range is between 5 and 100. Age = | E5: =IF(AND(DATEDIF($E$2,NOW(),"y")>=0,DATEDIF($E$2,NOW(),"y")<110),DATEDIF($E$2,NOW(),"y"),"Birthdate?") -> 35 | G5: H:MM:SS | I5: ="AGP " & IF($C$4,"M-","F-")&$E$5&": "&TEXT($R$5/$G$6,"#.##%") -> AGP M-35: 80.91% | L5: Lactate Threshold Zone (LT) | P5: ="Age "&TEXT(E5,"#")& " Standard:" -> Age 35 Standard: | R5: =R75 -> 0.01872879195 | S5: 10
D6: Distance: | E6: 10k | F6: Time: | G6: 00:33:20 | I6: =IF(AND($E$6>0,$G$6>0),(-4.6 + 0.182258 * (F8/G6/1440) + 0.000104 *(F8/G6/1440)^2)/D9,1) -> 64.31154325 | K6: LT Pace: | L6: =IF(AND($E$6>0,$G$6>0),(1/(29.54 + 5.000663 * ($I$6*0.88) - 0.007546 * ($I$6*0.88)^2)*1609.344/1440),"-") -> 00:05:34.839 | M6: =+L6*0.621371192 -> 00:03:28.059 | N6: LT HR: | O6: =IF($E$3>0,TEXT(0.88*E3,"0")&" - "&TEXT(0.92*E3,"0"),"") -> 165 - 173 | P6: ="Peak Potential at "&C3&IF(B4," kg"," lb") -> Peak Potential at 75 kg | R6: =R78 -> 0.02253954143 | S6: 1
C7: Zone / Distance | D7: Recovery | E7: Easy Aerobic Zone | H7: Mod Aero | I7: Hi Aero | J7: Marathon | K7: 1/2 Mar | L7: 15k | M7: 12k | N7: 10k | O7: 8k | P7: 5k | Q7: 3k | R7: 1 Mile
B8: Heart Rate Tweak | D8: =IF(E6="Custom",S8,HLOOKUP(E6,J7:P8,2,0)) -> 6.213711922 | F8: =IF(E6="Custom",S9,HLOOKUP(E6,J7:P9,3,0)) -> 10000 | H8: Distance in Miles --> | J8: =J9/1609.344 -> 26.21875746 | K8: =K9/1609.344 -> 13.10937873 | L8: 9.320567884 | M8: 7.456454307 | N8: 6.213711922 | O8: 4.970969538 | P8: 3.106855961 | Q8: 1.864113577 | R8: 1 | S8: =IF($S$6=1,S5,S5/1.609344) -> 10
B9: 1. Lower 2. Medium | D9: =IF($G$6>0,0.8+0.1894393 * EXP(-0.012778*G6*1440)+0.2989558* EXP(-0.1932605*G6*1440),0) -> 0.9242104449 | H9: Distance in Meters --> | J9: 42195 | K9: =J9/2 -> 21097.5 | L9: 15000 | M9: 12000 | N9: 10000 | O9: 8000 | P9: 5000 | Q9: 3000 | R9: =+R8*1609.344 -> 1609.344 | S9: =IF($S$6=2,S5*1000,S5*1609.344) -> 16093.44
B10: 3. Higher | C10: 1 | F10: Daniels' Calculated % of VO2max --> | J10: =IF($G$6>0,0.8+0.1894393 * EXP(-0.012778*J16*1440)+0.2989558* EXP(-0.1932605*J16*1440),0) -> 0.826700717 | K10: 0.8740167005 | L10: 0.8984537767 | M10: 0.9131137052 | N10: 0.9242104449 | O10: 0.937198673 | P10: 0.968041455 | Q10: 1.017726684 | R10: 1.096210556 | S10: 0.8935801018
C11: % of HRmax | D11: 0.65 | E11: 0.7 | F11: 0.725 | G11: 0.75 | H11: =G11+((J11-G11)*0.3333) -> 0.7840171272 | I11: =G11+((J11-G11)*0.6667) -> 0.8180444605 | J11: =MIN(1,IF($C$10=2,0.5+0.5*(J10-0.28)/0.72,IF($C$10=3,(0.6463*(J10*100)+37.182)/100,0.65+0.35*(J10-0.59)/0.41))) -> 0.8520615877 | K11: 0.8924532809 | L11: 0.9133141996 | M11: 0.9258287728 | N11: 0.9353015993 | O11: 0.9463891111 | P11: 0.9727183152 | Q11: 1 | R11: 1 | S11: 0.9091537454
C12: % of HR Reserve | D12: =IF(AND($E$3>0,$E$4>0),(D13-$E$4)/($E$3-$E$4),"-") -> 0.5462068966 | E12: 0.6110344828 | F12: 0.6434482759 | G12: 0.675862069 | H12: 0.7199670339 | I12: 0.7640852316 | J12: 0.8081901965 | K12: 0.8605601159 | L12: 0.8876073761 | M12: 0.9038331674 | N12: 0.916115177 | O12: 0.9304907095 | P12: 0.9646278846 | Q12: 1 | R12: 1 | S12: 0.882213132
C13: Train / Race HR | D13: =IF($E$3>0,D11*$E$3,"-") -> 122.2 | E13: 131.6 | F13: 136.3 | G13: 141 | H13: 147.3952199 | I13: 153.7923586 | J13: 160.1875785 | K13: 167.7812168 | L13: 171.7030695 | M13: 174.0558093 | N13: 175.8367007 | O13: 177.9211529 | P13: 182.8710433 | Q13: 188 | R13: 188 | S13: 170.9209041
C14: Pace / Mile | D14: =IF(AND($E$6>0,$G$6>0),(1/(29.54+5.000663*($I$6*(0.59+0.41*(D11-0.65)/0.35))-0.007546*($I$6*(0.59+0.41*(D11-0.65)/0.35))^2)*1609.344/1440),"-") -> 00:07:43.298 | E14: =IF(AND($E$6>0,$G$6>0),(1/(29.54+5.000663*($I$6*(0.59+0.41*(E11-0.65)/0.35))-0.007546*($I$6*(0.59+0.41*(E11-0.65)/0.35))^2)*1609.344/1440),"-") -> 00:07:09.173 | F14: =IF(AND($E$6>0,$G$6>0),(1/(29.54+5.000663*($I$6*(0.59+0.41*(F11-0.65)/0.35))-0.007546*($I$6*(0.59+0.41*(F11-0.65)/0.35))^2)*1609.344/1440),"-") -> 00:06:54.071 | G14: =IF(AND($E$6>0,$G$6>0),(1/(29.54+5.000663*($I$6*(0.59+0.41*(G11-0.65)/0.35))-0.007546*($I$6*(0.59+0.41*(G11-0.65)/0.35))^2)*1609.344/1440),"-") -> 00:06:40.084 | H14: =IF(AND($E$6>0,$G$6>0),G14+((J14-G14)*0.3333),"-") -> 00:06:23.694 | I14: =IF(AND($E$6>0,$G$6>0),G14+((J14-G14)*0.6667),"-") -> 00:06:07.299 | J14: =IF(AND($E$6>0,$G$6>0),J16/J8,"-") -> 00:05:50.909 | K14: 00:05:36.614 | L14: 00:05:29.795 | M14: 00:05:25.409 | N14: 00:05:21.869 | O14: 00:05:17.588 | P14: 00:05:08.757 | Q14: 00:04:59.437 | R14: 00:04:48.455 | S14: 00:05:31.190
C15: Pace / km | D15: =IF(D14<>"-",D14*0.621371192,"-") -> 00:04:47.880 | E15: 00:04:26.676 | F15: 00:04:17.292 | G15: 00:04:08.601 | H15: 00:03:58.416 | I15: 00:03:48.229 | J15: 00:03:38.045 | K15: 00:03:29.163 | L15: 00:03:24.925 | M15: 00:03:22.200 | N15: 00:03:20 | O15: 00:03:17.340 | P15: 00:03:11.853 | Q15: 00:03:06.062 | R15: 00:02:59.238 | S15: 00:03:25.792
B16: Points Grid | D16: FALSE | E16: TRUE | G16: 2 | I16: Race Projections --> | J16: =IF(AND($E$6>0,$G$6>0),IF($G$16=1,(1/(29.54+5.000663*($I$6*(J10))-0.007546*($I$6*(J10))^2)/1440)*J9,$G$6*(J8/$D$8)^1.06),"-") -> 0.1064860957 | K16: =IF(AND($E$6>0,$G$6>0),IF($G$16=1,(1/(29.54+5.000663*($I$6*(K10))-0.007546*($I$6*(K10))^2)/1440)*K9,$G$6*(K8/$D$8)^1.06),"-") -> 0.0510741454 | L16: 0.03557730015 | M16: 0.02808331517 | N16: 0.02314814815 | O16: 0.01827223362 | P16: 0.01110259397 | Q16: 0.006460479953 | R16: 0.003338597559 | S16: 0.03833222878
H17: Distance Based Intensity Points Grid (Daniels) | M17: *These calcs based on performance entered above
C18: Points Factor | D18: =LOOKUP(((0.182258*(1/(D14*1440)*1609.344)+(0.000104*(1/(D14*1440)*1609.344)^2)-4.6)/$I$6),$W$125:$W$204,$Y$125:$Y$204) -> 0.1 | E18: 0.175 | F18: 0.225 | G18: 0.2665 | H18: 0.333 | I18: 0.4295 | J18: 0.55 | K18: 0.65 | L18: 0.703 | M18: 0.763 | N18: 0.8 | O18: 0.8615 | P18: 0.9385 | Q18: 1 | R18: 1.25
B19: =IF(AND($D$16,$E$16),2,1) -> 1 | C19: =IF($D$16,"KM ","Mile ") -> Mile | D19: =IF(AND(D$18<>"-",AND(D$14<>"-",D$14<>0)),$B19*D$18*(IF($D$16,D$15,D$14)*1440),"-") -> 0.7721639518 | E19: 1.251754019 | F19: 1.552765533 | G19: 1.777040849 | H19: 2.129502499 | I19: 2.629249582 | J19: 3.21666608 | K19: 3.646656419 | L19: 3.864100658 | M19: 4.138119645 | N19: 4.291584 | O19: 4.560036422 | P19: 4.829477062 | Q19: 4.990624632 | R19: 6.009475606
B20: =IF(AND($D$16,$E$16),B19+2,B19+1) -> 2 | C20: =IF($D$16,"KM ","Miles ") -> Miles | D20: 1.544327904 | E20: 2.503508037 | F20: 3.105531065 | G20: 3.554081699 | H20: 4.259004998 | I20: 5.258499164 | J20: 6.43333216 | K20: 7.293312838 | L20: 7.728201316 | M20: 8.27623929 | N20: 8.583168 | O20: 9.120072844 | P20: 9.658954124 | Q20: 9.981249263 | R20: 12.01895121
B21: 3 | C21: Miles | D21: 2.316491856 | E21: 3.755262056 | F21: 4.658296598 | G21: 5.331122548 | H21: 6.388507497 | I21: 7.887748746 | J21: 9.649998241 | K21: 10.93996926 | L21: 11.59230197 | M21: 12.41435893 | N21: 12.874752 | O21: 13.68010927 | P21: 14.48843119 | Q21: 14.97187389 | R21: 18.02842682
B22: 4 | C22: Miles | D22: 3.088655807 | E22: 5.007016075 | F22: 6.211062131 | G22: 7.108163397 | H22: 8.518009997 | I22: 10.51699833 | J22: 12.86666432 | K22: 14.58662568 | L22: 15.45640263 | M22: 16.55247858 | N22: 17.166336 | O22: 18.24014569 | P22: 19.31790825 | Q22: 19.96249853 | R22: 24.03790242
B23: 5 | C23: Miles | D23: 3.860819759 | E23: 6.258770093 | F23: 7.763827663 | G23: 8.885204247 | H23: 10.6475125 | I23: 13.14624791 | J23: 16.0833304 | K23: 18.2332821 | L23: 19.32050329 | M23: 20.69059822 | N23: 21.45792 | O23: 22.80018211 | P23: 24.14738531 | Q23: 24.95312316 | R23: -
B24: 6 | C24: Miles | D24: 4.632983711 | E24: 7.510524112 | F24: 9.316593196 | G24: 10.6622451 | H24: 12.77701499 | I24: 15.77549749 | J24: 19.29999648 | K24: 21.87993851 | L24: 23.18460395 | M24: 24.82871787 | N24: 25.749504 | O24: 27.36021853 | P24: - | Q24: - | R24: -
B25: 7 | C25: Miles | D25: 5.405147663 | E25: 8.762278131 | F25: 10.86935873 | G25: 12.43928595 | H25: 14.90651749 | I25: 18.40474707 | J25: 22.51666256 | K25: 25.52659493 | L25: 27.04870461 | M25: 28.96683751 | N25: 30.041088 | O25: - | P25: - | Q25: - | R25: -
B26: 8 | C26: Miles | D26: 6.177311615 | E26: 10.01403215 | F26: 12.42212426 | G26: 14.21632679 | H26: 17.03601999 | I26: 21.03399666 | J26: 25.73332864 | K26: 29.17325135 | L26: 30.91280526 | M26: 33.10495716 | N26: - | O26: - | P26: - | Q26: - | R26: -
B27: 9 | C27: Miles | D27: 6.949475567 | E27: 11.26578617 | F27: 13.97488979 | G27: 15.99336764 | H27: 19.16552249 | I27: 23.66324624 | J27: 28.94999472 | K27: 32.81990777 | L27: 34.77690592 | M27: Intensity Points Calculator
B28: 10 | C28: Miles | D28: 7.721639518 | E28: 12.51754019 | F28: 15.52765533 | G28: 17.77040849 | H28: 21.29502499 | I28: 26.29249582 | J28: 32.1666608 | K28: 36.46656419 | L28: 38.64100658 | M28: 1 - Time & Distance | O28: 3 - Distance & Pace | R28: Mode | X28: Points Factors
B29: 11 | C29: Miles | D29: 8.49380347 | E29: 13.76929421 | F29: 17.08042086 | G29: 19.54744934 | H29: 23.42452749 | I29: 28.9217454 | J29: 35.38332688 | K29: 40.11322061 | L29: - | M29: 2 - Time & Pace | O29: 4 - Time & Heart Rate | R29: 1 | W29: Time | X29: Time | Y29: Distance | Z29: Time
B30: 12 | C30: Miles | D30: 9.265967422 | E30: 15.02104822 | F30: 18.63318639 | G30: 21.32449019 | H30: 25.55402999 | I30: 31.55099498 | J30: 38.59999296 | K30: 43.75987703 | L30: - | M30: h:mm:ss | N30: =IF($D$16,"KM","Miles") -> Miles | O30: Pace | P30: HeartRate | Q30: Factor | R30: Points | W30: Distance | X30: Pace | Y30: Pace | Z30: Heart Rate
B31: 13 | C31: Miles | D31: 10.03813137 | E31: 16.27280224 | F31: 20.18595192 | G31: 23.10153104 | H31: 27.68353249 | I31: 34.18024457 | J31: 41.81665904 | K31: 47.40653345 | L31: - | M31: 01:00:00 | N31: 3 | O31: 10:45:00 | P31: 125 | Q31: =IF($R$29=1,IF(ISNA(W31),"too slow",W31),IF($R$29=2,IF(ISNA(X31),"too slow",X31),IF($R$29=3,IF(ISNA(Y31),"too slow",Y31),Z31))) -> too slow | R31: =IF(Q31="Too Slow","",IF($R$29=3,O31*N31*24*Q31,M31*1440*Q31)) ->  | W31: =IF(M31*N31,LOOKUP(((0.182258*(1/((M31/N31)*1440)*IF($D$16,1000,1609.344))+(0.000104*(1/((M31/N31)*1440)*IF($D$16,1000,1609.344))^2)-4.6)/$I$6),$W$125:$W$204,$Y$125:$Y$204),0) ->  | X31: =IF(M31*O31,LOOKUP(((0.182258*(1/(O31*24)*IF($D$16,1000,1609.344))+(0.000104*(1/(O31*24)*IF($D$16,1000,1609.344))^2)-4.6)/$I$6),$W$125:$W$204,$Y$125:$Y$204),0) ->  | Y31: =IF(N31*O31,LOOKUP(((0.182258*(1/(O31*24)*IF($D$16,1000,1609.344))+(0.000104*(1/(O31*24)*IF($D$16,1000,1609.344))^2)-4.6)/$I$6),$W$125:$W$204,$Y$125:$Y$204),0) ->  | Z31: =IF(M31*P31,LOOKUP(MAX(P31/$E$3,0.56),$X$125:$X$204,$Y$125:$Y$204),0) -> 0.11
B32: 14 | C32: Miles | D32: 10.81029533 | E32: 17.52455626 | F32: 21.73871746 | G32: 24.87857189 | H32: 29.81303499 | I32: 36.80949415 | J32: 45.03332512 | K32: - | L32: - | M32: 01:00:00 | N32: 5 | O32: 10:45:00 | P32: 126 | Q32: too slow | Z32: =IF(M32*P32,LOOKUP(MAX(ROUND(P32/$E$3,2),0.65),$X$125:$X$204,$Y$125:$Y$204),0) -> 0.122
B33: 15 | C33: Miles | D33: 11.58245928 | E33: 18.77631028 | F33: 23.29148299 | G33: 26.65561274 | H33: 31.94253749 | I33: 39.43874373 | J33: 48.2499912 | K33: - | L33: - | M33: 01:00:00 | N33: 7 | O33: 10:45:00 | P33: 127 | Q33: 0.1 | R33: 6 | W33: 0.1 | Z33: 0.135
B34: 16 | C34: Miles | D34: 12.35462323 | E34: 20.0280643 | F34: 24.84424852 | G34: 28.43265359 | H34: 34.07203999 | I34: 42.06799331 | J34: 51.46665728 | K34: - | L34: - | M34: 01:00:00 | N34: 9 | O34: 10:45:00 | P34: 128 | Q34: 0.2665 | R34: 15.99 | W34: 0.2665 | Z34: 0.135
B35: 17 | C35: Miles | D35: =IF(AND(D$18<>"-",AND(D$14<>"-",D$14<>0)),$B35*D$18*(IF($D$16,D$15,D$14)*1440),"-") -> 13.12678718 | E35: 21.27981832 | F35: 26.39701406 | G35: 30.20969444 | H35: 36.20154249 | I35: 44.69724289 | J35: 54.68332336 | K35: - | L35: - | M35: 01:00:00 | N35: 11 | O35: 11:40:00 | P35: 129 | Q35: 0.743 | R35: 44.58 | W35: 0.743 | Z35: 0.15
B36: 18 | C36: Miles | D36: 13.89895113 | E36: 22.53157234 | F36: 27.94977959 | G36: 31.98673529 | H36: 38.33104498 | I36: 47.32649248 | J36: 57.89998944 | K36: - | L36: - | M36: 01:00:00 | N36: 13 | P36: 130 | Q36: 1.5 | R36: 90 | W36: 1.5 | X36: 0 | Y36: 0 | Z36: 0.15
B37: 19 | C37: Miles | D37: 14.67111508 | E37: 23.78332635 | F37: 29.50254512 | G37: 33.76377614 | H37: 40.46054748 | I37: 49.95574206 | J37: 61.11665552 | K37: - | L37: - | Q37: 0 | R37: 0 | W37: 0 | X37: 0 | Y37: 0 | Z37: 0
B38: 20 | C38: Miles | D38: 15.44327904 | E38: 25.03508037 | F38: 31.05531065 | G38: 35.54081699 | H38: 42.59004998 | I38: 52.58499164 | J38: 64.3333216 | K38: - | L38: - | Q38: 0 | R38: 0 | W38: 0 | X38: 0 | Y38: 0 | Z38: 0
B39: 21 | C39: Miles | D39: 16.21544299 | E39: 26.28683439 | F39: 32.60807619 | G39: 37.31785784 | H39: 44.71955248 | I39: 55.21424122 | J39: 67.54998769 | K39: - | L39: - | Q39: 0 | R39: 0 | W39: 0 | X39: 0 | Y39: 0 | Z39: 0
B40: 22 | C40: Miles | D40: 16.98760694 | E40: 27.53858841 | F40: 34.16084172 | G40: 39.09489869 | H40: 46.84905498 | I40: 57.8434908 | J40: 70.76665377 | K40: - | L40: - | Q40: 0 | R40: 0 | W40: 0 | X40: 0 | Y40: 0 | Z40: 0
B41: 23 | C41: Miles | D41: 17.75977089 | E41: 28.79034243 | F41: 35.71360725 | G41: 40.87193953 | H41: 48.97855748 | I41: 60.47274039 | J41: 73.98331985 | K41: - | L41: - | M41: =IF(SUM(M31:M40)>0,SUM(M31:M40),"") -> 06:00:00 | N41: =IF(SUM(N31:N40)>0,SUM(N31:N40),"") -> 48 | O41: =IF(SUM(O31:O40)>0,AVERAGE(O31:O40),"") -> 10:56:00 | P41: =IF(SUM(P31:P40)>0,AVERAGE(P31:P40),"") -> 127.5 | R41: =IF(SUM(R31:R40)>0,SUM(R31:R40),"") -> 156.57
B42: 24 | C42: Miles | D42: 18.53193484 | E42: 30.04209645 | F42: 37.26637278 | G42: 42.64898038 | H42: 51.10805998 | I42: 63.10198997 | J42: 77.19998593 | K42: - | L42: - | M42: Weekly Point Levels
B43: 25 | C43: Miles | D43: 19.3040988 | E43: 31.29385047 | F43: 38.81913832 | G43: 44.42602123 | H43: 53.23756248 | I43: 65.73123955 | J43: 80.41665201 | K43: - | L43: - | M43: Novice High School - 50 | P43: College - 150
B44: 26 | C44: Miles | D44: 20.07626275 | E44: 32.54560449 | F44: 40.37190385 | G44: 46.20306208 | H44: 55.36706498 | I44: 68.36048913 | J44: 83.63331809 | K44: - | L44: - | M44: Advanced High School - 100 | P44: Elite - 200
B45: This table calculates Intensity Points based on effort (Percent of HRmax) and distance of run.
B47: ="Pace for Tempo Runs of 20 to 60 Minutes at VDOT "&ROUND($I$6,2) & " (Daniels)" -> Pace for Tempo Runs of 20 to 60 Minutes at VDOT 64.31 (Daniels) | L47: TRUE | M47: Add Time | N47: Extended Projection Table | Q47: Age/Sex Grading | W47: For Daniels Race Times
B48: Duration | D48: 20 | E48: 25 | F48: 30 | G48: 35 | H48: 40 | I48: 45 | J48: 50 | K48: 55 | L48: 60 | M48: (mm:ss) | N48: Age: | O48: =$E$5 -> 35 | Q48: vs Age | R48: 35 | T48: 2015 Open Class Std | X48: Daniels %
B49: =IF($L$47,"Pace / km","Pace / mile") -> Pace / km | D49: =IF($L$6<>"-",IF($L$47,$L$6*0.621371192,$L$6),"-") -> 00:03:28.059 | E49: =IF($D$49<>"-",D$49*1.012,"-") -> 00:03:30.556 | F49: =IF($D$49<>"-",$D$49*1.022,"-") -> 00:03:32.637 | G49: =IF($D$49<>"-",$D$49*1.027,"-") -> 00:03:33.677 | H49: =IF($D$49<>"-",$D$49*1.033,"-") -> 00:03:34.925 | I49: =IF($D$49<>"-",$D$49*1.038,"-") -> 00:03:35.966 | J49: =IF($D$49<>"-",$D$49*1.043,"-") -> 00:03:37.006 | K49: =IF($D$49<>"-",$D$49*1.04866,"-") -> 00:03:38.184 | L49: =IF($D$49<>"-",$D$49*1.055,"-") -> 00:03:39.503 | M49: 0.5354166667 | N49: Distance | O49: Time | P49: =IF($P$70,"Pace/ km","Pace/ mi") -> Pace/ km | Q49: TRUE | R49: =IF($P$70,"Pace/ km","Pace/ mi") -> Pace/ km | S49: miles | T49: Male | U49: Female | W49: Meters | X49: of VO2max
B50: Approx Distance | D50: =IF(D49<>"-",IF($L$47,ROUND(D48/D49/1440,1)&" km",ROUND(D48/D49/1440,1)&" mi"),"-") -> 5.8 km | E50: 7.1 km | F50: 8.5 km | G50: 9.8 km | H50: 11.2 km | I50: 12.5 km | J50: 13.8 km | K50: 15.1 km | L50: 16.4 km | M50: 0.5076388889 | N50: 1500m | O50: =IF(AND($E$6>0,$G$6>0),IF($G$16=1,(1/(29.54+5.000663*($I$6*(X50))-0.007546*($I$6*(X50))^2)/1440)*W50,($G$6*(S50/$D$8)^1.06)),"-") -> 0.003098653306 | P50: =IF(O50<>"-",O50/S50*IF($P$70,0.621371192,1),"-") -> 00:02:58.482 | Q50: =IF($O$84="yes",(O50*LOOKUP($O$48,$AB$125:$AB$220,IF($C$4,$AC$125:$AC$220,$AD$125:$AD$220))/LOOKUP($R$48,$AB$125:$AB$220,IF($Q$49,$AC$125:$AC$220,$AD$125:$AD$220)))*(IF(AND($C$4,NOT($Q$49)),LOOKUP($O$48,$AB$125:$AB$220,$AE$125:$AE$220),IF(AND(NOT($C$4),$Q$49),1/LOOKUP($R$48,$AB$125:$AB$220,$AE$125:$AE$220),1))),"-") -> 0.003098653306 | R50: =IF($O$84="yes",Q50/S50*IF($P$70,0.621371192,1),"-") -> 0.00206576887 | S50: =1.5/1.609344 -> 0.9320567884 | T50: 0.002372685185 | U50: 0.002696759259 | V50: 1.5k - 3 mile | W50: =S50*1609.344 -> 1500 | X50: =IF($G$6>0,0.8+0.1894393 * EXP(-0.012778*O50*1440)+0.2989558* EXP(-0.1932605*O50*1440),0) -> 1.105151405
B51: 20 min run at Threshold Pace - Longer runs adjusted for proper intensity. | M51: 0.4263888889 | N51: 1 Mile | O51: =IF(AND($E$6>0,$G$6>0),IF($G$16=1,(1/(29.54+5.000663*($I$6*(X51))-0.007546*($I$6*(X51))^2)/1440)*W51,($G$6*(S51/$D$8)^1.06)),"-") -> 0.003338597559 | P51: 00:02:59.238 | Q51: 0.003338597559 | R51: 0.002074508345 | S51: 1 | T51: 0.002569444444 | U51: 0.002912037037 | V51: Times are | W51: =S51*1609.344 -> 1609.344 | X51: 1.096210556
B52: Jack Daniels Online Training Log | G52: Run Smart Project (J.Daniels - Head Coach) | M52: 0.3770833333 | N52: 2k | O52: 0.004203470933 | P52: 00:03:01.590 | Q52: 0.004203470933 | R52: 0.002101735466 | S52: =2/1.609344 -> 1.242742384 | T52: 0.003275462963 | U52: 0.003726851852 | V52: taken from | W52: 2000 | X52: 1.068143437
B53: ="Interval Split Times In "&IF(L53,"Metric","US/Imperial")&" Distances (Daniels)" -> Interval Split Times In Metric Distances (Daniels) | L53: TRUE | M53: 0.3395833333 | N53: 3k | O53: 0.006460479953 | P53: 00:03:06.062 | Q53: 0.006460479953 | R53: 0.002153493317 | S53: =3/1.609344 -> 1.864113577 | T53: 0.005092592593 | U53: 0.005798611111 | V53: Track | W53: 3000 | X53: 1.017726684
B54: ="Pace per "&IF($L$53,"/ km","/ mile") -> Pace per / km | D54: =IF($L$53,"100m","110yd") -> 100m | E54: =IF($L$53,"200m","220yd") -> 200m | F54: =IF($L$53,"300m","330yd") -> 300m | G54: =IF($L$53,"400m","440yd") -> 400m | H54: =IF($L$53,"600m","660yd") -> 600m | I54: =IF($L$53,"800m","880yd") -> 800m | J54: =IF($L$53,"1000m","1100yd") -> 1000m | K54: =IF($L$53,"1200m","1320yd") -> 1200m | L54: =IF($L$53,"1600m","1 mile") -> 1600m | N54: 2 Mile | O54: 0.006960747289 | P54: 00:03:06.849 | Q54: 0.006960747289 | R54: 0.00216260392 | S54: 2 | T54: 0.005486111111 | U54: 0.006273148148 | V54: Open Class | W54: 3218.688 | X54: 1.009749566
B55: =IF(AND($E$6>0,$G$6>0),(1/(29.54 + 5.000663 * ($I$6*(1.03+0.1*($I$6-30)/55)) - 0.007546 * ($I$6*(1.03+0.1*($I$6-30)/55))^2)*IF($L$53,1000,1609.344)/1440),"-") -> 00:02:54.617 | D55: =IF($R$14<>"-",IF($L$53,B55*0.1,B55*0.0625),"-") -> 00:00:17.462 | E55: =IF($R$14<>"-",IF($L$53,B55*0.2,B55*0.125),"-") -> 00:00:34.923 | F55: =IF($R$14<>"-",IF($L$53,B55*0.3,B55*0.1875),"-") -> 00:00:52.385 | G55: =IF($R$14<>"-",IF($L$53,B55*0.4,B55*0.25),"-") -> 00:01:09.847 | H55: =IF($R$14<>"-",IF($L$53,B55*0.6,B55*0.375),"-") -> 00:01:44.770 | I55: =IF($R$14<>"-",IF($L$53,B55*0.8,B55*0.5),"-") -> 00:02:19.694 | J55: =IF($R$14<>"-",IF($L$53,B55*1,B55*0.625),"-") -> 00:02:54.617 | K55: =IF($R$14<>"-",IF($L$53,B55*1.2,B55*0.75),"-") -> 00:03:29.541 | L55: =IF($R$14<>"-",IF($L$53,B55*1.6,B55*1),"-") -> 00:04:39.388 | N55: 3 Mile | O55: 0.01069824653 | P55: 00:03:11.450 | Q55: 0.01069824653 | R55: 0.002215860733 | S55: 3 | T55: 0.008449074074 | U55: 0.009641203704 | V55: Standards | W55: 4828.032 | X55: 0.9708152614
B56: =IF(AND($E$6>0,$G$6>0),(1/(29.54 + 5.000663 * ($I$6*0.98) - 0.007546 * ($I$6*0.98)^2)*IF($L$53,1000,1609.344)/1440),"-") -> 00:03:10.637 | D56: =IF($R$14<>"-",IF($L$53,B56*0.1,B56*0.0625),"-") -> 00:00:19.064 | E56: =IF($R$14<>"-",IF($L$53,B56*0.2,B56*0.125),"-") -> 00:00:38.127 | F56: =IF($R$14<>"-",IF($L$53,B56*0.3,B56*0.1875),"-") -> 00:00:57.191 | G56: =IF($R$14<>"-",IF($L$53,B56*0.4,B56*0.25),"-") -> 00:01:16.255 | H56: =IF($R$14<>"-",IF($L$53,B56*0.6,B56*0.375),"-") -> 00:01:54.382 | I56: =IF($R$14<>"-",IF($L$53,B56*0.8,B56*0.5),"-") -> 00:02:32.510 | J56: =IF($R$14<>"-",IF($L$53,B56*1,B56*0.625),"-") -> 00:03:10.637 | K56: =IF($R$14<>"-",IF($L$53,B56*1.2,B56*0.75),"-") -> 00:03:48.764 | L56: =IF($R$14<>"-",IF($L$53,B56*1.6,B56*1),"-") -> 00:05:05.019 | N56: 5k | O56: 0.01110259397 | P56: 00:03:11.853 | Q56: 0.01110259397 | R56: 0.002220518794 | S56: =5/1.609344 -> 3.106855961 | T56: 0.009016203704 | U56: 0.01025462963 | W56: 5000 | X56: 0.968041455
B57: =IF(AND($E$6>0,$G$6>0),(1/(29.54 + 5.000663 * ($I$6*0.88) - 0.007546 * ($I$6*0.88)^2)*IF($L$53,1000,1609.344)/1440),"-") -> 00:03:28.059 | D57: =IF($R$14<>"-",IF($L$53,B57*0.1,B57*0.0625),"-") -> 00:00:20.806 | E57: =IF($R$14<>"-",IF($L$53,B57*0.2,B57*0.125),"-") -> 00:00:41.612 | F57: =IF($R$14<>"-",IF($L$53,B57*0.3,B57*0.1875),"-") -> 00:01:02.418 | G57: =IF($R$14<>"-",IF($L$53,B57*0.4,B57*0.25),"-") -> 00:01:23.224 | H57: =IF($R$14<>"-",IF($L$53,B57*0.6,B57*0.375),"-") -> 00:02:04.836 | I57: =IF($R$14<>"-",IF($L$53,B57*0.8,B57*0.5),"-") -> 00:02:46.447 | J57: =IF($R$14<>"-",IF($L$53,B57*1,B57*0.625),"-") -> 00:03:28.059 | K57: =IF($R$14<>"-",IF($L$53,B57*1.2,B57*0.75),"-") -> 00:04:09.671 | L57: =IF($R$14<>"-",IF($L$53,B57*1.6,B57*1),"-") -> 00:05:32.895 | N57: 4 Mile | O57: 0.01451268144 | P57: 00:03:14.784 | Q57: 0.01451268144 | R57: 0.002254440541 | S57: 4 | T57: 0.01173611111 | U57: 0.01341435185 | W57: 6437.376 | X57: 0.9503102004
B58: =IF($L$53, R15,R14) -> 00:02:59.238 | D58: =IF($R$14<>"-",IF($L$53,R15*0.1,R14*0.0625),"-") -> 00:00:17.924 | E58: =IF($R$14<>"-",IF($L$53,R15*0.2,R14*0.125),"-") -> 00:00:35.848 | F58: =IF($R$14<>"-",IF($L$53,R15*0.3,R14*0.1875),"-") -> 00:00:53.771 | G58: =IF($R$14<>"-",IF($L$53,R15*0.4,R14*0.25),"-") -> 00:01:11.695 | H58: =IF($R$14<>"-",IF($L$53,R15*0.6,R14*0.375),"-") -> 00:01:47.543 | I58: =IF($R$14<>"-",IF($L$53,R15*0.8,R14*0.5),"-") -> 00:02:23.390 | J58: =IF($R$14<>"-",IF($L$53,R15,R14*0.625),"-") -> 00:02:59.238 | K58: =IF($R$14<>"-",IF($L$53,R15*1.2,R14*0.75),"-") -> 00:03:35.085 | L58: =IF($R$14<>"-",IF($L$53,R15*1.6,R14),"-") -> 00:04:46.780 | N58: 8k | O58: 0.01827223362 | P58: 00:03:17.340 | Q58: 0.01827223362 | R58: 0.002284029202 | S58: =8/1.609344 -> 4.970969538 | T58: 0.01472222222 | U58: 0.01668981481 | V58: 5k - 50k | W58: 8000 | X58: 0.937198673
B59: =IF($L$53, P15,P14) -> 0.002220518794 | D59: =IF($P$14<>"-",IF($L$53,P15*0.1,P14*0.0625),"-") -> 00:00:19.185 | E59: =IF($P$14<>"-",IF($L$53,P15*0.2,P14*0.125),"-") -> 00:00:38.371 | F59: =IF($P$14<>"-",IF($L$53,P15*0.3,P14*0.1875),"-") -> 00:00:57.556 | G59: =IF($P$14<>"-",IF($L$53,P15*0.4,P14*0.25),"-") -> 00:01:16.741 | H59: =IF($P$14<>"-",IF($L$53,P15*0.6,P14*0.375),"-") -> 00:01:55.112 | I59: =IF($P$14<>"-",IF($L$53,P15*0.8,P14*0.5),"-") -> 00:02:33.482 | J59: =IF($P$14<>"-",IF($L$53,P15,P14*0.625),"-") -> 00:03:11.853 | K59: =IF($P$14<>"-",IF($L$53,P15*1.2,P14*0.75),"-") -> 00:03:50.223 | L59: =IF($P$14<>"-",IF($L$53,P15*1.6,P14),"-") -> 00:05:06.965 | N59: 5 Mile | O59: 0.01838536584 | P59: 00:03:17.409 | Q59: 0.01838536584 | R59: 0.002284827338 | S59: 5 | T59: 0.01480324074 | U59: 0.01680555556 | V59: Times are | W59: 8046.72 | X59: 0.9368598746
B60: =IF($L$53,N15,N14) -> 0.002314814814 | D60: =IF($N$14<>"-",IF($L$53,N15*0.1,N14*0.0625),"-") -> 00:00:20 | E60: =IF($N$14<>"-",IF($L$53,N15*0.2,N14*0.125),"-") -> 00:00:40 | F60: =IF($N$14<>"-",IF($L$53,N15*0.3,N14*0.1875),"-") -> 00:01:00 | G60: =IF($N$14<>"-",IF($L$53,N15*0.4,N14*0.25),"-") -> 00:01:20 | H60: =IF($N$14<>"-",IF($L$53,N15*0.6,N14*0.375),"-") -> 00:02:00 | I60: =IF($N$14<>"-",IF($L$53,N15*0.8,N14*0.5),"-") -> 00:02:40 | J60: =IF($N$14<>"-",IF($L$53,N15,N14*0.625),"-") -> 00:03:20 | K60: =IF($N$14<>"-",IF($L$53,N15*1.2,N14*0.75),"-") -> 00:04:00 | L60: =IF($N$14<>"-",IF($L$53,N15*1.6,N14),"-") -> 00:05:20 | N60: 10k | O60: 0.02314814815 | P60: 00:03:20 | Q60: 0.02314814815 | R60: 0.002314814814 | S60: =10/1.609344 -> 6.213711922 | T60: 0.01855324074 | U60: 0.02106481481 | V60: taken from | W60: 10000 | X60: 0.9242104449
B61: Top 3 are Daniels' R, I, and T Paces - Bottom 3 are Generic 1 Mile, 5k, and 10k Paced Intervals | N61: 12k | O61: 0.02808331517 | P61: 00:03:22.200 | Q61: 0.02808331517 | R61: 0.002340276264 | S61: =12/1.609344 -> 7.456454307 | T61: 0.02247685185 | U61: 0.02539351852 | V61: Road | W61: 12000 | X61: 0.9131137052
M62: =(SUM(M49:M61)/60)*M66 -> 0.03643518519 | N62: 15k | O62: 0.03557730015 | P62: 00:03:24.925 | Q62: 0.03557730015 | R62: 0.002371820009 | S62: =15/1.609344 -> 9.320567884 | T62: 0.02841435185 | U62: 0.03188657407 | V62: Racing | W62: 15000 | X62: 0.8984537767
B63: McMillanRunning.com | F63: Training Range Guideline Approximations | L63: TRUE | M63: =(SUM(M49:M61)/60)*M66 -> 0.03643518519 | N63: 10 Mile | O63: 0.03833222878 | P63: 00:03:25.792 | Q63: 0.03833222878 | R63: 0.002381854269 | S63: 10 | T63: 0.03055555556 | U63: 0.03427083333 | V63: Open Class | W63: 16093.44 | X63: 0.8935801018
B64: Run Type | E64: Anaerobic Int | F64: Aerobic Int | G64: Cruise Int | H64: Tempo Int | I64: Tempo | J64: Steady | K64: Easy | L64: Long | M64: =IF(COUNT(M49:M61)>0,M62/M65,0) -> 0.007287037037 | N64: 20k | O64: 0.04826230374 | P64: 00:03:28.493 | Q64: 0.04826230374 | R64: 0.002413115186 | S64: =20/1.609344 -> 12.42742384 | T64: 0.03836805556 | U64: 0.04282407407 | V64: Standards | W64: 20000 | X64: 0.877947261
B65: Race Pace | E65: =IF($L$63,"1.6 k","Mile") -> 1.6 k | F65: 3k - 8k | G65: 8k - 12k | H65: 10k - 15k | I65: 12k - 1/2m | J65: 1/2m - 30k | K65: MP+30-60 | L65: MP+30-90 | M65: =COUNT(M49:M61)*M66 -> 5 | N65: 1/2 Mar | O65: 0.0510741454 | P65: 00:03:29.163 | Q65: 0.0510741454 | R65: 0.002420862442 | S65: =K8 -> 13.10937873 | T65: 0.04054398148 | U65: 0.04527777778 | W65: 21097.5 | X65: 0.8740167005
B66: =IF($L$63,"Pace / km","Pace / mile") -> Pace / km | E66: =IF($L$63,$R$15,$R$14) -> 00:02:59.238 | F66: =IF($L$63,TEXT($Q$15,"m:ss")&" - "&TEXT($O$15,"m:ss"),TEXT($Q$14,"m:ss")&"-"&TEXT($O$14,"m:ss")) -> 3:06 - 3:17 | G66: =IF($L$63,TEXT($O$15,"m:ss")&" - "&TEXT($M$15,"m:ss"),TEXT($O$14,"m:ss")&"-"&TEXT($M$14,"m:ss")) -> 3:17 - 3:22 | H66: =IF($L$63,TEXT($N$15,"m:ss")&" - "&TEXT($L$15,"m:ss"),TEXT($N$14,"m:ss")&"-"&TEXT($L$14,"m:ss")) -> 3:20 - 3:25 | I66: =IF($L$63,TEXT($M$15,"m:ss")&" - "&TEXT($K$15,"m:ss"),TEXT($M$14,"m:ss")&"-"&TEXT($K$14,"m:ss")) -> 3:22 - 3:29 | J66: =IF($L$63,TEXT($K$15,"m:ss")&" - "&TEXT(($J$15+$K$15)/2,"m:ss"),TEXT($K$14,"m:ss")&"-"&TEXT(($J$14+$K$14)/2,"m:ss")) -> 3:29 - 3:34 | K66: =TEXT(($J$14+"0:00:30")*IF($L$63,0.621371192,1),"m:ss")&" - "&TEXT(($J$14+"0:01:00")*IF($L$63,0.621371192,1),"m:ss") -> 3:57 - 4:15 | L66: =TEXT(($J$14+"0:00:30")*IF($L$63,0.621371192,1),"m:ss")&" - "&TEXT(($J$14+"0:01:30")*IF($L$63,0.621371192,1),"m:ss") -> 3:57 - 4:34 | M66: 1 | N66: 25k | O66: 0.06114101756 | P66: 00:03:31.303 | Q66: 0.06114101756 | R66: 0.002445640702 | S66: =25/1.609344 -> 15.53427981 | T66: 0.04866898148 | U66: 0.05399305556 | W66: 25000 | X66: 0.8615010696
G67: =IF($H$67,"Heart Rate","% HRmax") -> Heart Rate | H67: TRUE | I67: =IF($H$67,TEXT(0.9*$E$3,0)&" - "&TEXT(0.85*$E$3,0),"90 - 85%") -> 169 - 160 | J67: =IF($H$67,TEXT(0.87*$E$3,0)&" - "&TEXT(0.83*$E$3,0),"87 - 83%") -> 164 - 156 | K67: =IF($H$67,TEXT(0.75*$E$3,0),"75%") -> 141 | L67: =IF($H$67,TEXT(0.7*$E$3,0),"70%") -> 132 | M67: Subtract | N67: 30k | O67: 0.07417623455 | P67: 00:03:33.628 | Q67: 0.07417623455 | R67: 0.002472541151 | S67: =30/1.609344 -> 18.64113577 | T67: 0.05914351852 | U67: 0.06550925926 | W67: 30000 | X67: 0.8483855982
B68: *Note: The Greg McMillan and Joe Friel tables are approximate representations, not exact duplications. | M68: (mm:ss) | N68: Marathon | O68: 0.1064860957 | P68: 00:03:38.045 | Q68: 0.1064860957 | R68: 0.002523666208 | S68: =J8 -> 26.21875746 | T68: 0.08538194444 | U68: 0.09403935185 | W68: 42195 | X68: 0.826700717
B69: Joe Friel | F69: Training Zone Approximations | L69: FALSE | M69: 03:11:49 | N69: 50k | O69: 0.1274748348 | P69: 00:03:40.277 | Q69: 0.1274748348 | R69: 0.002549496695 | S69: =50/1.609344 -> 31.06855961 | T69: 0.1038194444 | U69: 0.1136574074 | W69: 50000 | X69: 0.8181467395
B70: Zones (Based on Lactate Threshold - LT) | F70: Zone 1 | G70: Zone 2 | H70: Zone 3 | I70: Zone 4 | J70: Zone 5a | K70: Zone 5b | L70: Zone 5c | M70: 03:11:27 | N70: Racing Statistics | P70: TRUE | Q70: Fastest Ages
B71: Zones by Heart Rate | F71: =IF($E$3,"< "&TEXT(IF($D$73,$F$73,$C$73)*0.85,0),"-") -> < 144 | G71: =IF($E$3,TEXT(IF($D$73,$F$73,$C$73)*0.85,0)&" - "&TEXT(IF($D$73,$F$73,$C$73)*0.89,0),"-") -> 144 - 151 | H71: =IF($E$3,TEXT(IF($D$73,$F$73,$C$73)*0.9,0)&" - "&TEXT(IF($D$73,$F$73,$C$73)*0.94,0),"-") -> 152 - 159 | I71: =IF($E$3,TEXT(IF($D$73,$F$73,$C$73)*0.95,0)&" - "&TEXT(IF($D$73,$F$73,$C$73)*0.99,0),"-") -> 161 - 168 | J71: =IF($E$3,TEXT(IF($D$73,$F$73,$C$73)*1,0)&" - "&TEXT(IF($D$73,$F$73,$C$73)*1.02,0),"-") -> 169 - 173 | K71: =IF($E$3,TEXT(IF($D$73,$F$73,$C$73)*1.03,0)&" - "&TEXT(IF($D$73,$F$73,$C$73)*1.06,0),"-") -> 174 - 179 | L71: =IF($E$3,"> "&TEXT(IF($D$73,$F$73,$C$73)*1.06,0),"-") -> > 179 | M71: =M69-M70 -> 0.0002546296296 | N71: IAAF | O71: Age Grade | P71: ARRS | Q71: M: 19-27 / F: 22-29
B72: =IF($L$69,"Zone Pace / km","Zone Pace / mile") -> Zone Pace / mile | F72: ="< "&TEXT(IF($J$73,$L$73/60,$I$73)*1.29*IF(L69,0.621371192,1),"m:ss") -> < 7:12 | G72: =TEXT(IF($J$73,$L$73/60,$I$73)*1.29*IF(L69,0.621371192,1),"m:ss")&" - "&TEXT(IF($J$73,$L$73/60,$I$73)*1.14*IF(L69,0.621371192,1),"m:ss") -> 7:12 - 6:22 | H72: =TEXT(IF($J$73,$L$73/60,$I$73)*1.13*IF(L69,0.621371192,1),"m:ss")&" - "&TEXT(IF($J$73,$L$73/60,$I$73)*1.06*IF(L69,0.621371192,1),"m:ss") -> 6:18 - 5:55 | I72: =TEXT(IF($J$73,$L$73/60,$I$73)*1.05*IF(L69,0.621371192,1),"m:ss")&" - "&TEXT(IF($J$73,$L$73/60,$I$73)*0.99*IF(L69,0.621371192,1),"m:ss") -> 5:52 - 5:31 | J72: =TEXT(IF($J$73,$L$73/60,$I$73)*1*IF(L69,0.621371192,1),"m:ss")&" - "&TEXT(IF($J$73,$L$73/60,$I$73)*0.97*IF(L69,0.621371192,1),"m:ss") -> 5:35 - 5:25 | K72: =TEXT(IF($J$73,$L$73/60,$I$73)*0.96*IF(L69,0.621371192,1),"m:ss")&" - "&TEXT(IF($J$73,$L$73/60,$I$73)*0.9*IF(L69,0.621371192,1),"m:ss") -> 5:21 - 5:01 | L72: ="> "&TEXT(IF($J$73,$L$73/60,$I$73)*0.9*IF(L69,0.621371192,1),"m:ss") -> > 5:01 | R72: =IF(ISNA(MATCH(D8,S50:S69,0)),"No","Yes") -> Yes
B73: Calc LTHR | C73: =IF($E$3<>"",$E$3*0.9,"") -> 169.2 | D73: FALSE | F73: 157 | H73: Calc FTPa | I73: =+L6 -> 00:05:34.839 | J73: FALSE | L73: 07:15:00 | M73: Entry Time Grading | P73: =IF(C4,"Male","Female")&" Peak Potential - "&$E$6 -> Male Peak Potential - 10k
M74: =IF($C$4," Male ","Female ")&IF(ISNUMBER($E$5),$E$5,"") -> Male 35 | O74: =$G$6 -> 00:33:20 | Q74: Open Std: | R74: =IF(R72="No","No Std",LOOKUP($D$8,$S$50:$S$69,IF($C$4,$T$50:$T$69,$U$50:$U$69))) -> 0.01855324074
B75: ="Projected Adverse Impact of High Temperatures on "&$E$6&" Time (Daniels)" -> Projected Adverse Impact of High Temperatures on 10k Time (Daniels) | L75: TRUE | M75: =IF(O74=$G$6, "Current Entry Time","Manual Time") -> Current Entry Time | P75: =IF($O$84="yes",ROUND((-4.6 + 0.182258 * (F8/R75/1440) + 0.000104 *(F8/R75/1440)^2)/(0.8+0.1894393 * EXP(-0.012778*R75*1440)+0.2989558* EXP(-0.1932605*R75*1440)),1),"") -> 82.6 | Q75: =IF($O$84="yes","Age "&DATEDIF($E$2,NOW(),"y")&" Std:","") -> Age 35 Std: | R75: =IF(R72="No","No Std",IF($O$84="yes",$R$74/LOOKUP(DATEDIF($E$2,NOW(),"y"),$AB$125:$AB$220,IF($C$4,$AC$125:$AC$220,$AD$125:$AD$220)),"")) -> 0.01872879195
B76: Temperature | D76: =IF($L$75,"16° c","60° f") -> 16° c | E76: =IF($L$75,"18° c","65° f") -> 18° c | F76: =IF($L$75,"21° c","70° f") -> 21° c | G76: =IF($L$75,"24° c","75° f") -> 24° c | H76: =IF($L$75,"27° c","80° f") -> 27° c | I76: =IF($L$75,"29° c","85° f") -> 29° c | J76: =IF($L$75,"32° c","90° f") -> 32° c | K76: =IF($L$75,"35° c","95° f") -> 35° c | L76: =IF($L$75,"38° c","100° f") -> 38° c | P76: Hypothetical best time | R76: =IF($O$84="Yes",$E$5,"Birthdate?") -> 35
B77: Adjusted Time | D77: =IF(AND($E$6>0,$G$6>0),G6,"-") -> 0.02314814815 | E77: =IF($D$77<>"-",$D$77*1.0075,"-") -> 0.02332175926 | F77: =IF($D$77<>"-",$D$77*1.015,"-") -> 0.02349537037 | G77: =IF($D$77<>"-",$D$77*1.0225,"-") -> 0.02366898148 | H77: =IF($D$77<>"-",$D$77*1.03,"-") -> 0.02384259259 | I77: =IF($D$77<>"-",$D$77*1.0375,"-") -> 0.0240162037 | J77: =IF($D$77<>"-",$D$77*1.045,"-") -> 0.02418981481 | K77: =IF($D$77<>"-",$D$77*1.0525,"-") -> 0.02436342593 | L77: =IF($D$77<>"-",$D$77*1.06,"-") -> 0.02453703704 | M77: Grading Calcs are Based on | P77: humanly possible at | R77: =IF(AND($C$2>0,$C$3>0),IF($B$4,ROUND($C$3 / ($C$2/100)^2,1),ROUND($C$3 / $C$2^2*703,1)),"Wght / Hght?") -> 23.1
B78: =IF($L$75,"Adj Pace / km","Adj Pace / mile") -> Adj Pace / km | D78: =IF($D$77<>"-",D77/IF($L$75,$F$8/1000,$D$8),"-") -> 00:03:20 | E78: 00:03:21.500 | F78: 00:03:23 | G78: 00:03:24.500 | H78: 00:03:26 | I78: 00:03:27.500 | J78: 00:03:29 | K78: 00:03:30.500 | L78: 00:03:32 | M78: Time & VDOT. Distance is Irrelevant. | P78: ="current age, wght "&$C$3 -> current age, wght 75 | R78: =IF(R72="no","-",IF(AND($C$2>0,$C$3>0,$O$84="yes"),MAX($R$75*($P$75/($D$92*$P$75/$C$3))^0.83,$R$75),"?")) -> 0.02253954143
B79: Performance is not adversely affected at 60° or lower. | P79: Best time possible at | R79: =IF(AND($C$2>0,$P$80>0),IF($B$4,ROUND($P$80 / ($C$2/100)^2,1),ROUND($P$80 / $C$2^2*703,1)),"") -> 45.7
P80: 148 | Q80: =IF($B$4," kg"," lbs") -> kg | R80: =IF(R72="no","-",IF(AND($C$2>0,$P$80>0,$O$84="yes"),MAX($R$75*($P$75/($D$92*$P$75/$P$80))^0.83,$R$75),"?")) -> 0.03962428615
B81: ="Projected Impact of Weight on "&$E$6&" Time (Daniels)" -> Projected Impact of Weight on 10k Time (Daniels) | M81: Age Grading
B82: =IF($C$4,"Male","Female") -> Male | D82: age: | E82: =$E$5 -> 35 | F82: =IF($B$4,"Height (cm):","Height (in):") -> Height (cm): | G82: =IF($B$4,"Height (cm):","Height (in):") -> Height (cm): | H82: =$C$2 -> 180 | I82: ="Weight"&IF($B$4," (kg):"," (lb):") -> Weight (kg): | J82: ="Weight"&IF($B$4," (kg):"," (lb):") -> Weight (kg): | K82: =$C$3 -> 75 | L82: FALSE | M82: Time Difference | O82: =IF($O$84="yes",$O$74-$O$83,0) -> 00:00:18.747 | P82: Free Form VDOT Calculator
B83: Projected Weight | D83: =$C$3+($C$3*$L$87*2) -> 81.75 | E83: =$C$3+($C$3*$L$87*1) -> 78.375 | F83: =$C$3-($C$3*$L$87*0) -> 75 | G83: =$C$3-($C$3*$L$87*1) -> 71.625 | H83: =$C$3-($C$3*$L$87*2) -> 68.25 | I83: =$C$3-($C$3*$L$87*3) -> 64.875 | J83: =$C$3-($C$3*$L$87*4) -> 61.5 | K83: =$C$3-($C$3*$L$87*5) -> 58.125 | L83: =$C$3-($C$3*$L$87*6) -> 54.75 | M83: =IF(M100,"Open Class Equivalent","No Age Grading") -> Open Class Equivalent | O83: =IF(AND($O$84="yes",$M$100),($O$74*LOOKUP($E$5,$AB$125:$AB$220,IF($C$4,$AC$125:$AC$220,$AD$125:$AD$220))/LOOKUP(25,$AB$125:$AB$220,IF($Q$49,$AC$125:$AC$220,$AD$125:$AD$220))),O74) -> 00:33:01.253 | P83: =IF(R85,"Kilometers","Miles") -> Miles | Q83: Time | R83: %VO2max
B84: Adjusted VDOT | D84: =IF(AND(D83>0,$I$6<>"-"),$C$3*$I$6/D83,"-") -> 59.00141583 | E84: =IF(AND(E83>0,$I$6<>"-"),$C$3*$I$6/E83,"-") -> 61.54214665 | F84: =IF(AND(F83>0,$I$6<>"-"),$C$3*$I$6/F83,"-") -> 64.31154325 | G84: =IF(ROUND(G83,0)>=$D$92,IF(AND(G83>0,$I$6<>"-"),$C$3*$I$6/G83,"-"),"too thin") -> 67.34193011 | H84: 70.67202555 | I84: 74.34860492 | J84: 78.42871128 | K84: too thin | L84: too thin | M84: Valid Age? | O84: =IF(AND(DATEDIF($E$2,NOW(),"y")>=5,DATEDIF($E$2,NOW(),"y")<=100),"Yes","No") -> Yes | P84: 5 | Q84: 00:20:28 | R84: =0.8+0.1894393 * EXP(-0.012778*Q84*1440)+0.2989558* EXP(-0.1932605*Q84*1440) -> 0.9515704861
B85: Estimated Time | D85: =IF(AND(D83>0,$E$6<>"",D84<>"too thin"),$G$6*($I$6/D84)^0.83,"-") -> 0.02486452954 | E85: 0.02400948111 | F85: 0.02314814815 | G85: 0.02228019829 | H85: 0.021405265 | I85: 0.02052294222 | J85: 0.01963277777 | K85: - | L85: - | P85: =ROUND((-4.6 + 0.182258 * ((P84*IF(R85,1000,1))/Q84/1440*(IF(R85,1,1609.344))) + 0.000104 *((P84*IF(R85,1000,1))/Q84/1440*(IF(R85,1,1609.344)))^2)/R84,1) -> 87.4 | R85: FALSE
B86: =IF($L$82,"Est Pace / km","Est Pace / mile") -> Est Pace / mile | D86: =IF(D85<>"-",D85/IF($L$82,$F$8/1000,$D$8),"-") -> 0.004001558144 | E86: 0.003863951437 | F86: 0.003725333333 | G86: 0.003585650343 | H86: 0.003444843479 | I86: 0.003302847392 | J86: 0.003159589311 | K86: - | L86: - | M86: Weight | P86: Time fields must be h:mm:ss format
B87: Estimated Times & Pace are +/- 2 seconds per mile | J87: Weight Increment: | L87: 0.045 | M87: =IF($C$3>0,$C$3,"Current Weight?") -> 75 | O87: =IF(AND($N$88>0,$N$89>0,$N$89<>"",$M$101),ABS($O$83-$O$83*($I$6/$N$89)^0.83),0) -> 0.01738159736 | P87: Pace Calculator
M88: Compare to | N88: 148 | P88: Miles | Q88: Time | R88: Pace
B89: Body Mass Index (BMI) | G89: =IF($C$4,"Male","Female") -> Male | H89: =IF(ISNUMBER($E$5),"Age "&$E$5,"Birthdate?") -> Age 35 | I89: ="Hgt "&$C$2 -> Hgt 180 | J89: ="Wgt "&$C$3 -> Wgt 75 | K89: ="Current BMI = " &IF($B$4,ROUND($C$3 / ($C$2/100)^2,1),ROUND($C$3 / $C$2^2*703,1)) -> Current BMI = 23.1 | M89: =IF(AND($C$2>0,$N$88>0),IF($B$4,ROUND($N$88 / ($C$2/100)^2,1),ROUND($N$88 / $C$2^2*703,1)),"") -> 45.7 | N89: =IF(AND($C$2>0,$N$88>0),MIN($C$3*$I$6/$N$88,$C$3*$I$6/$D$92),"") -> 32.59030908 | P89: 1.2 | Q89: 00:15:49 | R89: =Q89/P89 -> 00:13:10.833
B90: BMI Range | C90: <18.5 | D90: 18.5 | E90: 19 | F90: 20 | G90: 21 | H90: 22 | I90: 23 | J90: 24 | K90: 25 | L90: >25 | M90: =IF(M101,"Weight Adjusted Time","No Weight Grading") -> Weight Adjusted Time | O90: =IF($N$88<$M$87,$O$83-$O$87,$O$83+$O$87) -> 00:58:03.023 | P90: Km | Q90: Time | R90: Pace
B91: ="for "&IF($B$4,ROUND($C$2,0)&" cm",INT($C$2/12)&" ft "&ROUND((($C$2/12)-INT($C$2/12))*12,1)&" in") -> for 180 cm | C91: Too Thin | D91: =IF($B$4,ROUND(D90*($C$2/100)^2,0)&" kg",ROUND(D90/703*$C$2^2,0)&" lb") -> 60 kg | E91: 62 kg | F91: 65 kg | G91: 68 kg | H91: 71 kg | I91: 75 kg | J91: 78 kg | K91: 81 kg | L91: OvrWeight | M91: Lowest valid BMI is 18.5 (Open Std Equiv) | P91: 10 | Q91: 00:44:09 | R91: =Q91/P91 -> 00:04:24.900
D92: =IF($B$4,ROUND(D90*($C$2/100)^2,0),ROUND(D90/703*$C$2^2,0)) -> 60 | E92: 62 | F92: 65 | G92: 68 | H92: 71 | I92: 75 | J92: 78 | K92: 81 | P92: Finish Time Calculator
B93: Dr. Stillman's Weight Guidelines | G93: Average Adult | I93: Middle Dist Runner | K93: Long Dist Runner | M93: Temperature | P93: Miles | Q93: Pace/mi | R93: Time
B94: =" based on a height of "&IF($B$4,ROUND($C$2,3)&" cm",INT($C$2/12)&" ft "&ROUND((($C$2/12)-INT($C$2/12))*12,1)&" in") -> based on a height of 180 cm | G94: Non-Active | I94: (12% Below Average) | K94: (15% Below Average) | M94: =IF($B$4,"Temp °C","Temp °F") -> Temp °C | N94: 70 | O94: =IF($M$102,IF($B$4,MAX($O$90*(($N$94-16)*0.002727),0),MAX($O$90*(($N$94-60)*0.0015),0)),0) -> 0 | P94: 26.2 | Q94: 0.3576388889 | R94: =(Q94*P94)/60 -> 0.1561689815
B95: =IF($B$4, IF($C$2<152.4,"** Under the minum height **",""),IF($C$2<60,"**Under the minimum height **","")) ->  | F95: Male | G95: =IF($B$4,IF($C$2>=152.4,49.895+(($C$2-152.4)/2.5)*2.495,0),IF($C$2>=60,110+($C$2-60)*5.5,0)) -> 77.4398 | I95: =G95*0.88 -> 68.147024 | K95: =G95*0.85 -> 65.82383 | M95: =IF(M102,"Temp Adjusted Time","No Temp Grading") -> No Temp Grading | O95: =IF($N$96,$O$90+$O$94,$O$90-$O$94) -> 00:58:03.023 | P95: Km | Q95: Pace/km | R95: Time
B96: =IF($B$4,"(Minimum height is 152.4 cm)","(Minimum height is 60 inches)") -> (Minimum height is 152.4 cm) | F96: Female | G96: =IF($B$4,IF($C$2>=152.4,45.355+(($C$2-152.4)/2.5)*2.268,0),IF($C$2>=60,100+($C$2-60)*5,0)) -> 70.39372 | I96: =G96*0.88 -> 61.9464736 | K96: =G96*0.85 -> 59.834662 | N96: FALSE | P96: 42.195 | Q96: 0.1972222222 | R96: =(Q96*P96)/60 -> 0.1386965278
P97: Quick Converter
B98: Absolute VO2max Calculated from VDOT (Daniels) | P98: US to Metric
E99: ="Weight in "&IF($B$4,"kg","lbs") -> Weight in kg | G99: VDOT | I99: Absolute VO2max | M99: Time Grade Summary | P99: 3.1 | Q99: =P99*1.609344 -> 4.9889664
B100: Top Elite Male Runner | E100: =IF($B$4,62,136) -> 62 | G100: 82 | I100: =E100*IF($B$4,1,0.45359237)*G100/1000 -> 5.084 | M100: TRUE | N100: TRUE | O100: =$O$82 -> 0.0002169753086 | P100: 0.4166666667 | Q100: =P100/1.609344/60 -> 00:06:12.823
B101: ="Entry Weight & VDOT" -> Entry Weight & VDOT | E101: =$C$3 -> 75 | G101: =$I$6 -> 64.31154325 | I101: =E101*IF($B$4,1,0.45359237)*G101/1000 -> 4.823365744 | K101: =$G$6 -> 00:33:20 | L101: =$E$6 -> 10k | M101: TRUE | N101: TRUE | O101: =$O$87 -> 0.01738159736 | P101: 130 | Q101: =P101*0.45359237 -> 58.9670081
B102: VDOT if I Now Weighed --> | E102: 170 | G102: =E101*G101/E102 -> 28.37273967 | I102: =E102*IF($B$4,1,0.45359237)*G102/1000 -> 4.823365744 | M102: FALSE | N102: TRUE | O102: =$O$94 -> 0 | P102: 74 | Q102: =P102*2.54 -> 187.96
B103: My Peak (17:55 5k 1986) | E103: 175 | G103: 56.6 | I103: =E103*IF($B$4,1,0.45359237)*G103/1000 -> 9.905 | M103: Combined Time Grade | O103: =$O$74-$O$100+IF($N$88<$M$87,-$O$101,$O$101)+IF($N$96,$O$102,-$O$102) -> 00:58:03.023 | P103: Metric to US
B104: Runner X | I104: =E104*IF($B$4,1,0.45359237)*G104/1000 -> 0 | P104: 1.3 | Q104: =P104*0.621371192 -> 0.8077825496
B105: Absolute VO2max (in Liters) = weight in kg x VDOT / 1000 | P105: 0.2590277778 | Q105: =P105/0.62137117223/60 -> 00:10:00.285
P106: 62 | Q106: =P106*2.20462262 -> 136.6866024
B107: Weekly Intensity Distribution | P107: 188 | Q107: =P107*0.393700787 -> 74.01574796
B108: Run Type | D108: %HRmax | E108: Mon | F108: Tues | G108: Wed | H108: Thur | I108: Fri | J108: Sat | K108: Sun | L108: Percent | P108: Pace/Speed Conversions
B109: WarmUp / Recovery | D109: 65-70% | E109: 1 | F109: 1 | G109: 1 | H109: 1 | J109: 1 | L109: =IF(SUM(E109:K109)>0,SUM(E109:K109)/L118,"---") -> 0.1344086022 | M109: Recovery | P109: 0.4166666667 | Q109: =P109*1440 -> 600 | R109: =60/P109/24 -> 6
B110: Aerobic Zone | D110: 70-79% | E110: 5.2 | F110: 3.7 | G110: 3 | H110: 5.2 | J110: 5.2 | L110: =IF(SUM(E110:K110)>0,SUM(E110:K110)/L118,"---") -> 0.5994623656 | M110: & Aerobic | P110: 6 | Q110: =60/P110/1440 -> 00:10:00 | R110: =60/P110*60 -> 600
B111: Long Run | D111: 70-75% | E111: =IF(MAX($E$118:$K$118)=E118,"*","") ->  | J111: =IF(MAX($E$118:$K$118)=J118,"*","") -> * | K111: =IF(MAX($E$118:$K$118)=K118,"*","") ->  | L111: =IF(L118>0,MAX(E118:K118)/L118,"---") -> 0.3225806452 | M111: =IF(L118>0,SUM(E109:K110)/L118,0) -> 0.7338709677 | P111: 600 | Q111: =P111/1440/60 -> 00:10:00 | R111: =60/P111*60 -> 6
B112: Marathon Pace | D112: 80-89% | F112: 1.5 | J112: 5.8 | L112: =IF(SUM(E112:K112)>0,SUM(E112:K112)/L118,"---") -> 0.1962365591 | M112: Endurance | P112: 0.2590277778 | Q112: =P112*1440 -> 373 | R112: =60/P112/24 -> 9.651474531
B113: Tempo / Cruise | D113: 88-92% | G113: 2.6 | L113: =IF(SUM(E113:K113)>0,SUM(E113:K113)/L118,"---") -> 0.06989247312 | M113: & Strength | P113: 9.65 | Q113: =60/P113/1440 -> 00:06:13.057 | R113: =60/P113*60 -> 373.0569948
B114: Hills | L114: =IF(SUM(E114:K114)>0,SUM(E114:K114)/L118,"---") -> --- | M114: =SUM(L112:L114) -> 0.2661290323 | P114: 373 | Q114: =P114/1440/60 -> 00:06:13 | R114: =60/P114*60 -> 9.651474531
B115: Intervals | D115: 95-100% | L115: =IF(SUM(E115:K115)>0,SUM(E115:K115)/L118,"---") -> --- | M115: Speed | Q115: Miles | R115: Meters
B116: Repititions | D116: Race Pace | L116: =IF(SUM(E116:K116)>0,SUM(E116:K116)/L118,"---") -> --- | M116: & Races | P116: 1/2 Mar | Q116: 13.109375 | R116: 21097.494
B117: Race | L117: =IF(SUM(E117:K117)>0,SUM(E117:K117)/L118,"---") -> --- | M117: =SUM(L115:L117) -> 0 | P117: Marathon | Q117: 26.21875 | R117: 42194.988
C118: Totals | E118: =E109+E110+E112+E113+E114+E115+E116+E117 -> 6.2 | F118: 6.2 | G118: 6.6 | H118: 6.2 | I118: 0 | J118: =J109+J110+J112+J113+J114+J115+J116+J117 -> 12 | K118: =K109+K110+K112+K113+K114+K115+K116+K117 -> 0 | L118: =SUM(E118:K118) -> 37.2
G119: * Asterisk Denotes Highest Mileage Day
W121: These figures needed for worksheet calcs… do not disturb!
AB123: 2015 Age Grade Factors
W124: % VDOT | X124: % of HRMax | Y124: Point Value | Z124: 5k | AB124: Age | AC124: FactorM | AD124: FactorF | AE124: MtoF_Fact
W125: 0.5 | X125: 0.56 | Y125: 0.1 | Z125: 8k | AB125: 5 | AC125: 0.60564 | AD125: 0.6696 | AE125: 0.9611233638
W126: 0.59 | X126: 0.65 | Y126: 0.1 | Z126: 10k | AB126: =+AB125+1 -> 6 | AC126: 0.65964 | AD126: 0.7060466667 | AE126: 1.044234077
W127: 0.595 | X127: 0.655 | Y127: =(Y125+Y128)/2 -> 0.105 | Z127: 12k | AB127: 7 | AC127: 0.70964 | AD127: 0.74048 | AE127: 1.069863454
W128: 0.6 | X128: 0.66 | Y128: 0.11 | Z128: 15k | AB128: 8 | AC128: 0.75564 | AD128: 0.77284 | AE128: 1.090515346
W129: 0.605 | X129: 0.665 | Y129: =(Y128+Y130)/2 -> 0.116 | Z129: 1/2 Mar | AB129: 9 | AC129: 0.79764 | AD129: 0.8031866667 | AE129: 1.106783768
W130: 0.61 | X130: 0.67 | Y130: 0.122 | Z130: Marathon | AB130: 10 | AC130: 0.83564 | AD130: 0.83158 | AE130: 1.119370464
W131: 0.615 | X131: 0.675 | Y131: =(Y130+Y132)/2 -> 0.1285 | Z131: Custom | AB131: 11 | AC131: 0.86964 | AD131: 0.85784 | AE131: 1.128684669
W132: 0.62 | X132: 0.68 | Y132: 0.135 | AB132: 12 | AC132: 0.89964 | AD132: 0.8821466667 | AE132: 1.135000485
W133: 0.625 | X133: 0.685 | Y133: =(Y132+Y134)/2 -> 0.1425 | AB133: 13 | AC133: 0.92564 | AD133: 0.90444 | AE133: 1.138620181
W134: 0.63 | X134: 0.69 | Y134: 0.15 | AB134: 14 | AC134: 0.94764 | AD134: 0.92466 | AE134: 1.13991383
W135: 0.635 | X135: 0.695 | Y135: =(Y134+Y136)/2 -> 0.1585 | AB135: 15 | AC135: 0.96564 | AD135: 0.9428666667 | AE135: 1.138972118
W136: 0.64 | X136: 0.7 | Y136: 0.167 | AB136: 16 | AC136: 0.97964 | AD136: 0.9600666667 | AE136: 1.134573166
W137: 0.645 | X137: 0.705 | Y137: =(Y136+Y138)/2 -> 0.175 | AB137: 17 | AC137: 0.99164 | AD137: 0.9772666667 | AE137: 1.127948718
W138: 0.65 | X138: 0.71 | Y138: 0.183 | AB138: 18 | AC138: 0.99932 | AD138: 0.9899733333 | AE138: 1.122375589
W139: 0.655 | X139: 0.715 | Y139: =(Y138+Y140)/2 -> 0.1915 | AB139: 19 | AC139: 1 | AD139: 0.99628 | AE139: 1.116342714
W140: 0.66 | X140: 0.72 | Y140: 0.2 | AB140: 20 | AC140: 1 | AD140: 0.9989866667 | AE140: 1.113347412
W141: 0.665 | X141: 0.725 | Y141: =(Y140+Y142)/2 -> 0.2085 | AB141: 21 | AC141: 1 | AD141: 0.9997466667 | AE141: 1.112507003
W142: 0.67 | X142: 0.73 | Y142: 0.217 | AB142: 22 | AC142: 1 | AD142: 1 | AE142: 1.112248416
W143: 0.675 | X143: 0.735 | Y143: =(Y142+Y144)/2 -> 0.225 | AB143: 23 | AC143: 1 | AD143: 1 | AE143: 1.112248416
W144: 0.68 | X144: 0.74 | Y144: 0.233 | AB144: 24 | AC144: 1 | AD144: 1 | AE144: 1.112248416
W145: 0.685 | X145: 0.745 | Y145: =(Y144+Y146)/2 -> 0.2415 | AB145: 25 | AC145: 1 | AD145: 1 | AE145: 1.112248416
W146: 0.69 | X146: 0.75 | Y146: 0.25 | AB146: 26 | AC146: 1 | AD146: 1 | AE146: 1.112248416
W147: 0.7 | X147: 0.755 | Y147: =(Y146+Y148)/2 -> 0.2665 | AB147: 27 | AC147: 1 | AD147: 1 | AE147: 1.112248416
W148: 0.71 | X148: 0.76 | Y148: 0.283 | AB148: 28 | AC148: 0.99998 | AD148: 1 | AE148: 1.112248416
W149: 0.715 | X149: 0.765 | Y149: =(Y148+Y150)/2 -> 0.2915 | AB149: 29 | AC149: 0.99986 | AD149: 1 | AE149: 1.112224449
W150: 0.72 | X150: 0.77 | Y150: 0.3 | AB150: 30 | AC150: 0.9995466667 | AD150: 0.9999 | AE150: 1.112188395
W151: 0.725 | X151: 0.775 | Y151: =(Y150+Y152)/2 -> 0.3085 | AB151: 31 | AC151: 0.9989933333 | AD151: 0.9995 | AE151: 1.112406023
W152: 0.73 | X152: 0.78 | Y152: 0.317 | AB152: 32 | AC152: 0.9979533333 | AD152: 0.9984666667 | AE152: 1.113036925
W153: 0.735 | X153: 0.785 | Y153: =(Y152+Y154)/2 -> 0.325 | AB153: 33 | AC153: 0.9962 | AD153: 0.9969 | AE153: 1.113433542
W154: 0.74 | X154: 0.79 | Y154: 0.333 | AB154: 34 | AC154: 0.99378 | AD154: 0.99474 | AE154: 1.113817823
W155: 0.745 | X155: 0.795 | Y155: =(Y154+Y156)/2 -> 0.3415 | AB155: 35 | AC155: 0.9906266667 | AD155: 0.99204 | AE155: 1.113938953
W156: 0.75 | X156: 0.8 | Y156: 0.35 | AB156: 36 | AC156: 0.9868 | AD156: 0.9887533333 | AE156: 1.114076634
W157: 0.755 | X157: 0.805 | Y157: =(Y156+Y158)/2 -> 0.3585 | AB157: 37 | AC157: 0.98224 | AD157: 0.98488 | AE157: 1.113811638
W158: 0.76 | X158: 0.81 | Y158: 0.367 | AB158: 38 | AC158: 0.9770066667 | AD158: 0.9804466667 | AE158: 1.113509514
W159: 0.765 | X159: 0.815 | Y159: =(Y158+Y160)/2 -> 0.3795 | AB159: 39 | AC159: 0.9710933333 | AD159: 0.97546 | AE159: 1.112949338
W160: 0.77 | X160: 0.82 | Y160: 0.392 | AB160: 40 | AC160: 0.9646666667 | AD160: 0.9698866667 | AE160: 1.112468927
W161: 0.775 | X161: 0.825 | Y161: =(Y160+Y162)/2 -> 0.4045 | AB161: 41 | AC161: 0.9577266667 | AD161: 0.9637266667 | AE161: 1.11188318
W162: 0.78 | X162: 0.83 | Y162: 0.417 | AB162: 42 | AC162: 0.9504066667 | AD162: 0.95702 | AE162: 1.111296365
W163: 0.785 | X163: 0.835 | Y163: =(Y162+Y164)/2 -> 0.4295 | AB163: 43 | AC163: 0.94294 | AD163: 0.9497066667 | AE163: 1.111054394
W164: 0.79 | X164: 0.84 | Y164: 0.442 | AB164: 44 | AC164: 0.9354666667 | AD164: 0.94184 | AE164: 1.111453165
W165: 0.795 | X165: 0.845 | Y165: =(Y164+Y166)/2 -> 0.4545 | AB165: 45 | AC165: 0.9279933333 | AD165: 0.9334333333 | AE165: 1.112543939
W166: 0.8 | X166: 0.85 | Y166: 0.467 | AB166: 46 | AC166: 0.9205266667 | AD166: 0.9244066667 | AE166: 1.114475834
W167: 0.805 | X167: 0.855 | Y167: =(Y166+Y168)/2 -> 0.4795 | AB167: 47 | AC167: 0.91306 | AD167: 0.9148333333 | AE167: 1.117084543
W168: 0.81 | X168: 0.86 | Y168: 0.492 | AB168: 48 | AC168: 0.9055866667 | AD168: 0.9047066667 | AE168: 1.120456906
W169: 0.815 | X169: 0.865 | Y169: =(Y168+Y170)/2 -> 0.5045 | AB169: 49 | AC169: 0.8981 | AD169: 0.89428 | AE169: 1.124283577
W170: 0.82 | X170: 0.87 | Y170: 0.517 | AB170: 50 | AC170: 0.8906266667 | AD170: 0.8838333333 | AE170: 1.128171049
W171: 0.825 | X171: 0.875 | Y171: =(Y170+Y172)/2 -> 0.5335 | AB171: 51 | AC171: 0.88318 | AD171: 0.8734133333 | AE171: 1.132249871
W172: 0.83 | X172: 0.88 | Y172: 0.55 | AB172: 52 | AC172: 0.8757066667 | AD172: 0.8629733333 | AE172: 1.136411829
W173: 0.835 | X173: 0.885 | Y173: =(Y172+Y174)/2 -> 0.5665 | AB173: 53 | AC173: 0.8682266667 | AD173: 0.85254 | AE173: 1.140583654
W174: 0.84 | X174: 0.89 | Y174: 0.583 | AB174: 54 | AC174: 0.8607533333 | AD174: 0.8421 | AE174: 1.144948565
W175: 0.85 | X175: 0.895 | Y175: =(Y174+Y176)/2 -> 0.6 | AB175: 55 | AC175: 0.8532733333 | AD175: 0.8316733333 | AE175: 1.149373156
W176: 0.86 | X176: 0.9 | Y176: 0.617 | AB176: 56 | AC176: 0.8458266667 | AD176: 0.8212333333 | AE176: 1.154000767
W177: 0.865 | X177: 0.905 | Y177: =(Y176+Y178)/2 -> 0.6335 | AB177: 57 | AC177: 0.8383533333 | AD177: 0.8108133333 | AE177: 1.158750566
W178: 0.87 | X178: 0.91 | Y178: 0.65 | AB178: 58 | AC178: 0.83088 | AD178: 0.8003733333 | AE178: 1.163505876
W179: 0.875 | X179: 0.915 | Y179: =(Y178+Y180)/2 -> 0.6665 | AB179: 59 | AC179: 0.8234066667 | AD179: 0.78994 | AE179: 1.168453238
W180: 0.88 | X180: 0.92 | Y180: 0.683 | AB180: 60 | AC180: 0.81592 | AD180: 0.7795066667 | AE180: 1.173464356
W181: 0.89 | X181: 0.925 | Y181: =(Y180+Y182)/2 -> 0.703 | AB181: 61 | AC181: 0.80848 | AD181: 0.76908 | AE181: 1.178836256
W182: 0.9 | X182: 0.93 | Y182: 0.723 | AB182: 62 | AC182: 0.8010133333 | AD182: 0.7586466667 | AE182: 1.184207798
W183: 0.905 | X183: 0.935 | Y183: =(Y182+Y184)/2 -> 0.743 | AB183: 63 | AC183: 0.79352 | AD183: 0.7482066667 | AE183: 1.189757283
W184: 0.91 | X184: 0.94 | Y184: 0.763 | AB184: 64 | AC184: 0.78606 | AD184: 0.73778 | AE184: 1.195399376
W185: 0.915 | X185: 0.945 | Y185: =(Y184+Y186)/2 -> 0.7815 | AB185: 65 | AC185: 0.7785733333 | AD185: 0.72734 | AE185: 1.201269053
W186: 0.92 | X186: 0.95 | Y186: 0.8 | AB186: 66 | AC186: 0.77112 | AD186: 0.7169133333 | AE186: 1.207353357
W187: 0.925 | X187: 0.955 | Y187: =(Y186+Y188)/2 -> 0.82 | AB187: 67 | AC187: 0.76364 | AD187: 0.7064733333 | AE187: 1.213553409
W188: 0.93 | X188: 0.96 | Y188: 0.84 | AB188: 68 | AC188: 0.7561466667 | AD188: 0.6960466667 | AE188: 1.2199306
W189: 0.935 | X189: 0.965 | Y189: =(Y188+Y190)/2 -> 0.8615 | AB189: 69 | AC189: 0.74848 | AD189: 0.6856066667 | AE189: 1.22653466
W190: 0.94 | X190: 0.97 | Y190: 0.883 | AB190: =+AB189+1 -> 70 | AC190: 0.74054 | AD190: 0.67518 | AE190: 1.23297594
W191: 0.95 | X191: 0.975 | Y191: =(Y190+Y192)/2 -> 0.9 | AB191: 71 | AC191: 0.7321 | AD191: 0.6647466667 | AE191: 1.239077957
W192: 0.96 | X192: 0.98 | Y192: 0.917 | AB192: 72 | AC192: 0.7229866667 | AD192: 0.6543133333 | AE192: 1.244167381
W193: 0.97 | X193: 0.985 | Y193: =(Y192+Y194)/2 -> 0.9385 | AB193: 73 | AC193: 0.7131533333 | AD193: 0.6438733333 | AE193: 1.248070359
W194: 0.98 | X194: 0.99 | Y194: 0.96 | AB194: 74 | AC194: 0.7026733333 | AD194: 0.63344 | AE194: 1.251000121
W195: 0.99 | X195: 0.995 | Y195: =(Y194+Y196)/2 -> 0.98 | AB195: 75 | AC195: 0.6915466667 | AD195: 0.6229533333 | AE195: 1.253106215
W196: 1 | X196: 1 | Y196: 1 | AB196: 76 | AC196: 0.6797266667 | AD196: 0.61222 | AE196: 1.255051764
W197: 1.025 | X197: 1 | Y197: =(Y196+Y198)/2 -> 1.125 | AB197: 77 | AC197: 0.66722 | AD197: 0.6011333333 | AE197: 1.256881262
W198: 1.05 | X198: 1 | Y198: 1.25 | AB198: 78 | AC198: 0.65406 | AD198: 0.5896333333 | AE198: 1.258965999
W199: 1.075 | X199: 1 | Y199: =(Y198+Y200)/2 -> 1.375 | AB199: 79 | AC199: 0.64022 | AD199: 0.57756 | AE199: 1.261364578
W200: 1.1 | X200: 1 | Y200: 1.5 | AB200: 80 | AC200: 0.6256933333 | AD200: 0.5646 | AE200: 1.264409572
W201: 1.125 | X201: 1 | Y201: =(Y200+Y202)/2 -> 1.625 | AB201: 81 | AC201: 0.6105133333 | AD201: 0.5507933333 | AE201: 1.268262147
W202: 1.15 | X202: 1 | Y202: 1.75 | AB202: 82 | AC202: 0.5946733333 | AD202: 0.5361333333 | AE202: 1.272831138
W203: 1.175 | X203: 1 | Y203: =(Y202+Y204)/2 -> 1.925 | AB203: 83 | AC203: 0.57812 | AD203: 0.5206133333 | AE203: 1.278199336
W204: 1.2 | X204: 1 | Y204: 2.1 | AB204: 84 | AC204: 0.5609133333 | AD204: 0.50424 | AE204: 1.284553535
... 16 more rows

Sheet Running Power Zones
A1: Zones For Running With Power
A2: CP | B2: 300 | C2: <= Enter CP Here
A4: 1.) Steve Palladino’s Power Zones | G4: Link: https://www.facebook.com/groups/PalladinoPowerProject/ | I4: 5.) Matt Fitzgerald | O4: Link: http://mattfitzgerald.org/8020-zone-calculator/
A5: Zone | B5: Description | C5: Lower | D5: Upper | F5: Lower Limit | G5: Upper Limit | I5: Zone | J5: Description | K5: Lower | L5: Upper | N5: Lower Limit | O5: Upper Limit
A6: 1a | B6: Easy recovery | C6: 0.5 | D6: 0.65 | F6: =$B$2*C6 -> 150 | G6: =$B$2*D6 -> 195 | I6: Zone 1 | J6: Warmup/rec | K6: 0.5 | L6: 0.76 | N6: =$B$2*K6 -> 150 | O6: 228
A7: 1b | B7: Easy warmup | C7: 0.65 | D7: 0.75 | F7: 195 | G7: 225 | I7: Zone 2 | J7: Endurance | K7: 0.76 | L7: 0.88 | N7: 228 | O7: 264
A8: 1c | B8: Easy run | C8: 0.75 | D8: 0.8 | F8: 225 | G8: 240 | I8: X | J8: Tempo | K8: 0.88 | L8: 0.94 | N8: 264 | O8: 282
A9: 2 | B9: Long run | C9: 0.81 | D9: 0.87 | F9: 243 | G9: 261 | I9: Zone 3 | J9: Intervals | K9: 0.92 | L9: 1 | N9: 276 | O9: 300
A10: 3a | B10: Tempo | C10: 0.88 | D10: 0.94 | F10: 264 | G10: 282 | I10: Y | J10: Rep | K10: 1 | L10: 1.03 | N10: 300 | O10: 309
A11: 3b | B11: Threshold | C11: 0.95 | D11: 1.01 | F11: 285 | G11: 303 | I11: Zone 4 | J11: High Intensity | K11: 1.03 | L11: 1.2 | N11: 309 | O11: 360
A12: 4 | B12: Intervals | C12: 1.02 | D12: 1.05 | F12: 306 | G12: 315 | I12: Zone 5 | J12: Sprints | K12: 1.11 | L12: 3 | N12: 333 | O12: 900
A13: 5 | B13: Max Intervals | C13: 1.06 | D13: 1.16 | F13: 318 | G13: 348
A14: 6 | B14: Reps | C14: 1.17 | D14: 1.5 | F14: 351 | G14: 450
A15: 7 | B15: Sprints | C15: 1.5 | D15: 3 | F15: 450 | G15: 900
A17: 2.) Jim Vance – Run with Power | G17: Link: https://www.runwithpower.net/ | I17: 6.) Endurance Nation | O17: Link: https://www.endurancenation.us/
A18: Zone | B18: Description | C18: Lower | D18: Upper | F18: Lower Limit | G18: Upper Limit | I18: Zone | J18: Description | K18: Lower | L18: Upper | N18: Lower Limit | O18: Upper Limit
A19: 1 | B19: Walking/Rec | C19: 0 | D19: 0.81 | E19: 3+ hours | F19: =$B$2*C19 -> 0 | G19: 243 | I19: Z1 | J19: Warm Up / Go All Day pace. | K19: 0 | L19: 0.8 | N19: =$B$2*K19 -> 0 | O19: 240
A20: 2 | B20: Endurance | C20: 0.81 | D20: 0.88 | E20: 2-3 hours | F20: 243 | G20: 264 | I20: Total Run Pace | J20: IM / HIM Pace | K20: 0.8 | L20: 0.82 | N20: 240 | O20: 246
A21: 3 | B21: Tempo | C21: 0.89 | D21: 0.95 | E21: 1-3 hours | F21: 267 | G21: 285 | I21: Z2 | J21: HIM/Marathon Pace | K21: 0.85 | L21: 0.88 | N21: 255 | O21: 264
A22: 4 | B22: Threshold | C22: 0.95 | D22: 1.05 | E22: 1 hour | F22: 285 | G22: 315 | I22: Z3 | J22: HM Pace | K22: 0.9 | L22: 0.95 | N22: 270 | O22: 285
A23: 5 | B23: High Intensity | C23: 1.06 | D23: 1.15 | E23: 20-45 minutes | F23: 318 | G23: 345 | I23: Z4 | J23: 10K to 5K Pace | K23: 1 | L23: 1.05 | N23: 300 | O23: 315
A24: 6 | B24: VO2 | C24: 1.16 | D24: 1.28 | E24: 2-18 minutes | F24: 348 | G24: 384 | I24: Z5 | J24: 0.5 Mile Repeat/VO2 | K24: 1.1 | L24: 3 | N24: 330 | O24: 900
A25: 7 | B25: Anaerobic/Peak | C25: 1.29 | D25: 3 | E25: 2 minutes or less | F25: 387 | G25: 900
A27: 3.) Stryd Powercenter | G27: Link: https://www.stryd.com/powercenter/ | I27: 7.) Polar - Based On Maximum Aerobic Power (6 Minute Power) * | O27: Link: https://flow.polar.com/settings/sports
A28: Zone | B28: Description | C28: Lower | D28: Upper | F28: Lower Limit | G28: Upper Limit | I28: Zone | J28: Description | K28: Lower | L28: Upper | N28: Lower Limit | O28: Upper Limit | R28: Lower Limit | S28: Upper Limit
A29: Z1 | B29: Easy | C29: 0.65 | D29: 0.8 | F29: =$B$2*C29 -> 195 | G29: 240 | I29: Z1 | K29: 0.55 | L29: 0.69 | N29: =$B$2*K29 -> 165 | O29: 207 | R29: 172.15 | S29: 215.97
A30: Z2 | B30: Moderate | C30: 0.8 | D30: 0.9 | F30: 240 | G30: 270 | I30: Z2 | K30: 0.7 | L30: 0.84 | N30: 210 | O30: 252 | R30: 219.1 | S30: 262.92
A31: Z3 | B31: Threshold | C31: 0.9 | D31: 1 | F31: 270 | G31: 300 | I31: Z3 | K31: 0.85 | L31: 0.99 | N31: 255 | O31: 297 | R31: 266.05 | S31: 309.87
A32: Z4 | B32: Interval | C32: 1 | D32: 1.15 | F32: 300 | G32: 345 | I32: Z4 | K32: 1 | L32: 1.14 | N32: 300 | O32: 342 | R32: 313 | S32: 356.82
A33: Z5 | B33: Repetition | C33: 1.15 | D33: 3 | F33: 345 | G33: 900 | I33: Z5 | K33: 1.15 | L33: 3 | N33: 345 | O33: 900 | R33: 359.95 | S33: 939
O34: * MAP is not FTP or CP
A36: 4.) Van Dijk and Van Megen – The Secret of Running | G36: Link: https://thesecretofrunning.com/
A37: Zone | B37: Description | C37: Lower | D37: Upper | F37: Lower Limit | G37: Upper Limit
A38: 0 | B38: Warmup/rec | C38: 0.6 | D38: 0.7 | F38: =$B$2*C38 -> 180 | G38: 210 | I38: Sources: FinalSurge.com, http://runningbynumbers.com
A39: 1 | B39: Endurance | C39: 0 | D39: 0.7 | F39: 0 | G39: 210 | I39: Source: http://www.electricblues.com/html/runpro.html
A40: 2 | B40: Tempo | C40: 0.7 | D40: 0.7 | F40: 210 | G40: 210 | I40: Source: Collated via the5krunner.com
A41: 3 | B41: Intervals | C41: 0.8 | D41: 0.9 | F41: 240 | G41: 270
A42: 4 | B42: Rep | C42: 0.9 | D42: 1 | F42: 270 | G42: 300
A43: 5 | B43: High Intensity | C43: 1 | D43: 1.1 | F43: 300 | G43: 330
A44: 6 | B44: Sprints | C44: 1.1 | D44: 3 | F44: 330 | G44: 900

Sheet Zone Calc & Info
A1: HR Training Zones v1.05
A2: Fill in the blank cells, read the comments
A3: Understand what it means below
A5: Run | E5: Bike | I5: Swim/Other/Freeform | N5: =$N$15*1.29 -> 258
A6: LTHR | B6: 161 | C6: bpm | E6: LTHR | F6: 161 | G6: bpm | I6: LTHR | J6: 161 | K6: bpm | M6: =N5 -> 258 | N6: =$N$15*1.135 -> 227
A7: VO2max Pace | B7: 00:03:15 | C7: /km | E7: VO2max/CP6 | F7: 420 | G7: w | M7: 227 | N7: =$N$15*1.055 -> 211
A8: 30min Test | B8: 3 | C8: 20 | D8: min/km | E8: CP30 | F8: 383 | G8: w | M8: 211 | N8: =$N$15*0.995 -> 199
A9: 20min Test | D9: min/km | E9: CP20 | G9: w | M9: 199 | N9: =$N$15*0.965 -> 193
A10: FTPa | B10: =IF(B9="",O13,O14) -> 00:03:20 | C10: /km | E10: FTP | F10: =IF(F8="",F9*0.95,F8) -> 383 | G10: w | M10: 193 | N10: =$N$15*0.9 -> 180
A11: rFTP | B11: 300 | C11: watts | M11: 180 | N11: >
A12: Hrmax > | B12: =C18/0.89 -> 179.0898876 | C12: bpm (est.) | L12: z4 | M12: =N8*1.08 -> 214.92 | N12: =N8*1.04 -> 206.96
M13: =N13*0.95 -> 190 | N13: =B8*60+C8 -> 200 | O13: =TIME(INT((B8*60+C8)/3600),INT(MOD((B8*60+C8),3600)/60),MOD(MOD((B8*60+C8),3600),60)) -> 00:03:20
A14: HR | B14: Low | C14: High | E14: HR | F14: Low | G14: High | I14: HR | J14: Low | K14: High | M14: =N14*1.05 -> 0 | N14: =1.03*(B9*60+C9) -> 0 | O14: =TIME(INT((1.03*B9*60+C9)/3600),INT(MOD(1.03*(B9*60+C9),3600)/60),MOD(MOD(1.03*(B9*60+C9),3600),60)) -> 00:00:00
A15: Zone 1 | B15: < | C15: =$B$6*0.85 -> 136.85 | E15: Zone 1 | F15: < | G15: =$F$6*0.81 -> 130.41 | I15: Zone 1 | J15: < | K15: =$J$6*0.81 -> 130.41 | M15: FTPa(secs/km) | N15: =IF(B9="",N13,N14) -> 200
A16: Zone 2 | B16: =$B$6*0.85 -> 136.85 | C16: =$B$6*0.89 -> 143.29 | E16: Zone 2 | F16: =$F$6*0.81 -> 130.41 | G16: =$F$6*0.89 -> 143.29 | I16: Zone 2 | J16: =$J$6*0.81 -> 130.41 | K16: =$J$6*0.89 -> 143.29
A17: Zone 3 | B17: =$B$6*0.89 -> 143.29 | C17: =$B$6*0.94 -> 151.34 | E17: Zone 3 | F17: =$F$6*0.89 -> 143.29 | G17: =$F$6*0.93 -> 149.73 | I17: Zone 3 | J17: =$J$6*0.89 -> 143.29 | K17: =$J$6*0.93 -> 149.73
A18: Zone 4 | B18: =$B$6*0.94 -> 151.34 | C18: =$B$6*0.99 -> 159.39 | E18: Zone 4 | F18: =$F$6*0.93 -> 149.73 | G18: =$F$6*0.99 -> 159.39 | I18: Zone 4 | J18: =$J$6*0.93 -> 149.73 | K18: =$J$6*0.99 -> 159.39
A19: Zone 5a | B19: =$B$6*0.99 -> 159.39 | C19: =$B$6*1.02 -> 164.22 | E19: Zone 5a | F19: =$F$6*0.99 -> 159.39 | G19: =$F$6*1.02 -> 164.22 | I19: Zone 5a | J19: =$J$6*0.99 -> 159.39 | K19: =$J$6*1.02 -> 164.22
A20: Zone 5b | B20: =$B$6*1.02 -> 164.22 | C20: =$B$6*1.06 -> 170.66 | E20: Zone 5b | F20: =$F$6*1.02 -> 164.22 | G20: =$F$6*1.06 -> 170.66 | I20: Zone 5b | J20: =$J$6*1.02 -> 164.22 | K20: =$J$6*1.06 -> 170.66
A21: Zone 5c | B21: =$B$6*1.06 -> 170.66 | C21: > | E21: Zone 5c | F21: =$F$6*1.06 -> 170.66 | G21: > | I21: Zone 5c | J21: =$J$6*1.06 -> 170.66 | K21: >
A22: SWEETSPOT: | B22: =C18*0.84 -> 133.8876 | C22: =C18*0.89 -> 141.8571 | E22: SWEETSPOT: | F22: =G18*0.84 -> 133.8876 | G22: =G18*0.89 -> 141.8571 | I22: SWEETSPOT: | J22: =K18*0.84 -> 133.8876 | K22: =K18*0.89 -> 141.8571
A23: For run PACE & Power - see below.
A24: PACE (FTPa) | B24: Low | C24: High | E24: Power | F24: Low | G24: High | I24: These are based on bike zones and the zones are probably narrower for swimming in most people
A25: Zone 1 | C25: =TIME(INT(N5/3600),INT(MOD(N5,3600)/60),MOD(MOD(N5,3600),60)) -> 00:04:18 | D25: /km | E25: Zone 1 | F25: < | G25: =$F$10*0.55 -> 210.65 | H25: w | I25: Use this as a free-form calculator if you want.
A26: Zone 2 | B26: =C25 -> 00:04:18 | C26: 00:03:47 | D26: /km | E26: Zone 2 | F26: =$F$10*0.55 -> 210.65 | G26: =$F$10*0.74 -> 283.42 | H26: w
A27: Zone 3 | B27: 00:03:47 | C27: 00:03:31 | D27: /km | E27: Zone 3 | F27: =$F$10*0.74 -> 283.42 | G27: =$F$10*0.89 -> 340.87 | H27: w
A28: Zone 4 | B28: 00:03:31 | C28: 00:03:19 | D28: /km | E28: Zone 4 | F28: =$F$10*0.89 -> 340.87 | G28: =$F$10*1.04 -> 398.32 | H28: w
A29: Zone 5a | B29: 00:03:19 | C29: 00:03:13 | D29: /km | E29: Zone 5 | F29: =$F$10*1.04 -> 398.32 | G29: =$F$10*1.2 -> 459.6 | H29: w
A30: Zone 5b | B30: 00:03:13 | C30: 00:03:00 | D30: /km | E30: Zone 6 | F30: =$F$10*1.2 -> 459.6 | G30: > | H30: w
A31: Zone 5c | B31: 00:03:00 | C31: > | E31: SWEETSPOT: | F31: =G28*0.84 -> 334.5888 | G31: =G28*0.89 -> 354.5048 | H31: w
A32: SWEETSPOT: | B32: =TIME(INT(M12/3600),INT(MOD(M12,3600)/60),MOD(MOD(M12,3600),60)) -> 00:03:34 | C32: =TIME(INT(N12/3600),INT(MOD(N12,3600)/60),MOD(MOD(N12,3600),60)) -> 00:03:26
A34: Power (rFTP) | B34: Low | C34: High | D34: Based on Vance/Coggan
A35: Zone 1 | C35: =$B$11*0.8 -> 240 | D35: w | E35: > 3hours
A36: Zone 2 | B36: =C35 -> 240 | C36: =$B$11*0.88 -> 264 | D36: w | E36: 2-3 hours
A37: Zone 3 | B37: 264 | C37: =$B$11*0.95 -> 285 | D37: w | E37: 1-3 hours
A38: Zone 4 | B38: 285 | C38: =$B$11*1.05 -> 315 | D38: w | E38: 1 hour
A39: Zone 5a | B39: 315 | C39: =$B$11*1.15 -> 345 | D39: w | E39: 20-45 minutes
A40: Zone 5b | B40: 345 | C40: =$B$11*1.28 -> 384 | D40: w | E40: 2-18 minutes
A41: Zone 5c | B41: 384 | C41: > | D41: w | E41: <2 minutes
A42: SWEETSPOT: | B42: =$B$11*0.9 -> 270 | C42: =$B$11*0.96 -> 288
A44: SWEETSPOT: This is a level of effort that optimises the positive adaptational effects of training with the negative fatigue effects of training…you're soon ready to train again having had quite a lot of benefit from your session.
A45: TEMPO: This is a common running term for an extended effort of at least 20 minutes and usually up to an hour at a level below your LTHR(LT2, others say it is a Zone 3 run.
A46: LTHR: Lactate Threshold Heart Rate similar to LT2/OBLA (Onset of Blood Lactate Accumulation) similar to anaerobic threshold. Above this point fatigue accumulates quickly. This kind of effort can be maintained for about an hour.
A47: VO2max: This is a (near-) maximal effort where your body is utilising as much oxygen as it can.
A48: FTP (Functional Threshold Power): This is broadly the same as CP60 (Critical Power 60 minutes) and is the maximum average power you can generate for an hour.
A49: Strictly, FTP is the amount of time you can endure at the MLSS and this could be as low as 30 minutes or up to 70. You should really understand your entire CP curve in order to make predictions for the power levels YOU can put out.
A50: Tests
A51: 30 minutes: | B51: Run or cycle for 30 minutes and record your HR and POWER. Average power is your FTP or CP30 or CP60. Average HR for last 20-25 minutes is your LTHR.
A52: 20 minutes. | B52: Perform a flat out VO2max effort for 6 minutes. Rest for 6 minutes. Perform a flat out effort for 20 minutes. The 20 minute power average*.95 is your FTP or CP60. The HRavg last 15 minutes ot the 20 is your LTHR.
A53: From my experience these tests over-estimate LTHR by 5bpm compared to a lab test.
A54: Running FTP Test (Training Peaks)
A55: Detailed running calculator: | C55: http://the5krunner.files.wordpress.com/2011/11/the5krunner-and-danielstables-v3.xlsm (Original Source: http://www.electricblues.com/html/runpro.html)
A56: From British Cycling/WATTBIKE:
A57: Training Zone | B57: Duration | C57: RPE | D57: % MHR | E57: %MMP | F57: Purpose | J57: Physiological Adaptations | O57: Race fitness | T57: RPE (1-10)/How you feel
A58: Zone 0 | B58: < 60’ | C58: 1 | D58: < 60 | E58: < 35 | F58: Regeneration and recovery | J58: Increase blood flow to muscles to flush out waste products and provide nutrients | O58: Promotes recovery and therefore training response | T58: 1 Very relaxed. Able to carry on a conversation.
A59: Zone 1 | B59: 90’-360’ | C59: 2 | D59: 60-65 | E59: 35-45 | F59: Establish base endurance | J59: Improves fat metabolism, gets muscles/tendons/ligaments/nerves used to cycling. Increases economy | O59: More efficient use of energy. Prepares body for harder training, works on technique/skill | T59: 2 Relaxed. Able to carry on a conversation.
A60: Zone 2 | B60: 60’-240’ | C60: 3 | D60: 65-75 | E60: 45-55 | F60: Improve efficiency | J60: Improves the ability to use oxygen, produce power and increases efficiency | O60: Able to produce more power with the same level of effort, works on technique/skill | T60: 3 Working. Feel warmer. Heart rate and respiration up. May sweat.
A61: Zone 3 | B61: 45’-120’ | C61: 5 | D61: 75-82 | E61: 55-65 | F61: Improve sustainable power | J61: Improves carbohydrate metabolism, changes some fast twitch muscle to slow-twitch | O61: Improved sustainable power, good for all cycling events | T61: 5 Hard work. Heart rate and respiration up. Carbon dioxide build-up. Sweating. Breathing hard.
A62: Zone 4 | B62: 30’-60’ | C62: 6 | D62: 82-89 | E62: 65-75 | F62: Push threshold up | J62: Improves carbohydrate metabolism, develops lactate threshold, changes some fast twitch muscle to slow-twitch | O62: Improved sustainable race pace, useful during tapering or pre-competition periods: too much time in this zone can cause staleness | T62: 6 Stressed. Panting. Sweating freely.
A63: Zone 5 | B63: 14’-40’ | C63: 7 | D63: 89-94 | E63: 75-85 | F63: Sustain a high percentage of maximal aerobic power | J63: Develops cardiovascular system and VO2max, improves anaerobic energy production and speeds turnover of waste products | O63: Improved time trialling ability and resistance to short-term fatigue | T63: 7 Very stressed. Gasping. Sweating heavily.
A64: Zone 6 | B64: 4’-10’ intervals | C64: 10 | D64: > 94 | E64: 85-100 | F64: Increase maximum power output | T64: 10 heavily stressed. Gasping. Sweating heavily.
A65: Supra-maximal | B65: Short intervals | C65: 10 | D65: N/A | E65: > 100 | F65: Increase sprint power output | J65: Increases maximum muscle power, develops neural control of pedalling at specific cadence | O65: Develop race-specific skills at race pace, starting power, sprint speed, and the ability to jump away from the bunch | T65: 10 extremely stressful. Gasping. Sweating heavily.
A67: Critical Power TEST TIME (Minutes) equivalnece to Zones.
A68: CP240 = ~z2 (low)
A69: CP120 = ~z2 (high)
A70: CP90 = ~z3 (high)-z4 | C70: <= So this is the power level you can use for a 90 minute race
A71: CP60 = ~z5 (low) | C71: <= So this is the power level you can use for a 60 minute race, this is your FTP
A72: CP30 = ~z5 (high)
A73: CP12 = ~z6 (low)
A74: CP6 = ~z6 (high)
A75: CP1 = ~z7

Sheet Instructions
B2: General:
B4: No two runners are exactly alike. The many tables of projections and calculations in this worksheet are intended to be used as guidelines to aid in training plan development
B5: and goal setting. The pace calculations and other results of the worksheet are general approximations, and not intended to be presented as absolutes.
B6: Having said that, in my many years of running and using this tool, I find the race time projections to be remarkably accurate. As the saying goes... "Your mileage may vary".
B8: Throughout the worksheets, all user entry fields have a white background. All fields with colored backgrounds are formulas and should not be edited.
B9: The worksheets are protected and behind the scenes data tables are hidden to prevent accidental overwriting of formulas and data, but there is no password on the protection.
B11: I developed and use this spreadsheet at a screen resolution of 1600 x 900. My goal was to keep everything as compact as possible, and allow for viewing with no side-to-side
B12: scrolling. If you are using a lower resolution, you wil see less at one time, and may have to deal with scrolling side-to-side.
B14: Even though protection is enabled to preserve formulas and data, this does not interfere with basic formatting.
B15: You can change colors, add borders, insert comments, resize or hide rows and columns without disabling protection.
B17: Excel Requirements:
B18: This workbook is in .xlsm format, which means A) It's macro enabled, and B) It requires Excel version 2007 or newer. Keep this in mind if you give this spreadsheet to a friend with a very old computer.
B19: The workbook can be "Saved As" to the older .xls format, which should run on older versions of Excel. However, when saved under that format, Excel issues a warning about "Minor Loss of Fidelity".
B20: The message goes on to say there are some cells with formatting that is not compatible with older versions Excel. The spreadsheet should still function, but may not look exactly as it should.
B23: Main Section:
B24: Enter your height & weight, HRmax, resting heart rate, and a recent race performance (or best guestimate) in the fields in the upper-left corner of the worksheet.
B25: *Note: The metric checkbox option here is for height and weight only. Other tables in the worksheet have independent options to switch to metric.
B27: You can choose from seven common racing distances listed in the drop down, or you can use the Custom Distance option to enter *any* distance.
B28: When using the Custom Distance option, the distance does not need to be a recognized race distance. You can enter values such as 3.5 km, or 5.6 miles.
B29: When a non-recognized Custom Distance is entered, the Peak Performance sections will reflect "No Std", since there are no standards available for Custom distances.
B30: When entering times, the format h:mm:ss must be used. Hours must be entered, even if zero. An example 5k time would be 0:25:42.
B32: Using this information, training paces and racing equivalents are calculated for various workouts and distances, along with a fitness adjusted Heart Rate profile.
B33: The HR estimates do not represent an average over the entire distance. They reflect what one might expect to maintain at a steady state after the first mile or two.
B34: Daniels' Intensity Points are also calculated for various distances.
B36: More fit runners can maintain a higher HR over a given race distance than less fit runners, and this is reflected in the heart rate profile. For example,
B37: an elite runner may be able to run a marathon at 87-89% of HRmax, while a novice may only be able to maintain 80-82% of Hrmax, or less. There are several factors
B38: impacting this, including of course fitness level. But it's also due to the fact that time spent running is a significant factor with relation to maintaining a particular heart rate.
B39: A slower runner must ration his/her energy over a longer period of time, therefore needs to run at a lower effort to complete the distance.
B40: To accommodate individual variations, there's a Heart Rate Tweak Factor offering three setting options (Lower, Medium, Higher) to better align the HR calculations to each individual runner.
B42: Age Group Percent Score (AGP):
B43: Using the 2015 WMA and USATF approved Age Grade Tables, this calculation compares the input time to the world record, factoring in age and sex, and produces a percentage score.
B44: Higher scores reflect better performances. A score of 100% would represent a world record performance for the Age Group, while a score greater than 100% would imply a record setting performance.
B45: These calculations are approximations, and shouldn't be taken as absolutes. Due to rounding and averaging these results may differ slightly from other similar calculators.
B47: The WMA gives the following guidelines for scores:
B48: 100% - Approximate World Record Level
B49: >90% - World Class Level
B50: >80% - National Class Level
B51: >70% - Regional Class Level
B52: >60% - Local Class Level
B54: Peak Potential:
B55: Info from the Peak Potential section lower down in the worksheet is also displayed in the heading of the Main Section,
B56: for more convenient visual access to this hypothetical but interesting calculation. See below for more detals about the Peak Performance calculation.
B58: Hiding Rows:
B59: Unwanted rows of the Main Section can be hidden to free up display space. Individual rows can easily be hidden without having to disable protection.
B60: Use the small (S)how and (H)ide buttons in the HR Tweak section to hide that area. I also manually hide rows 12 (HR Reserve) and 15 (Pace/Km), since I don't need that info.
B61: The entire Intensigy Points Grid can also be hidden, as it takes up a lot of space and many people will probably not be interested in this data.
B63: A Note about Daniels' VDOT and Equivalent Race Time Calculations:
B64: Daniels' VDOT is a sort of normalized representation of relative VO2max. VDOT values were derived with the assumption that aerobic capacity, lactate threshold, and
B65: running economy are equal among all runners. Of course, this isn't the case. However, for establishing racing and training intensities, VDOT's normalized factors work very
B66: well. To fully understand the concepts behind VDOT, and for excellent overall training insight, I highly recommend picking up a copy of Daniels' book, "Daniels Running Formula".
B68: The formulas Daniels' uses to predict race times for other distances from a given performance are highly complex, and too difficult for me to decipher.
B69: So I used another projection model to calculate projected race times. Therefore, the race time proections in this worksheet will not exactly match those in Daniels' book.
B70: However, the model I use (Pete Riegel's formula), tracks very, very closely to Daniels', typically within 2-3 seconds per mile across the entire scope of distances from 5k to Marathon.
B72: The formulas I use to calculate Daniels' VDOT, VO2max, Lactate Threshold, training paces, and the effect of weight and temperature are Daniels' actual formulas.
B75: Intensity Points Grid
B76: The Intensigy Points Grid provides a method of quantifying the stress or workload of a particular workout type across a wide range of pace and durations.
B77: This allows comparison of relative workloads of the various types of workouts, and provides a means of tracking combined intensity over weekly or monthly training periods.
B78: Intensity Point calculations are based on data taken from Jack Daniels' Intensity Training Table (Table 2.2) from "Daniels' Running Formula, 2nd Edition".
B79: More training points per minute are given to workouts as the intensity increases. The faster and/or longer the workout, the more points are accumulated.
B81: In his book, Daniels shows Intensity Points in terms of minutes run. The Intensity Points Grid shows approximate equivalent point values from the perspective of miles run.
B82: The columns of the Intensity Points Grid align with the training/racing paces and % of HRmax calcs in the Main Section above. For example:
B83: The intersection of Excel column E, row 28 shows the points for a 10 mile run at 70% of HRmax.
B84: The intersection of Excel column K, row 22 shows the points for a 4 mile run at Half Marathon pace.
B85: The actual point values will vary based on your fitness level, but you will find that a 10 mile run at 70% of HRmax and a 4 mile run at 1/2 Marathon pace have similar point values.
B87: Nestled within the Points Grid is an Intensity Points Calculator, a little tool to calculate and total Intensity points for up to 10 runs of various distanced, time, pace, and heart rate.
B88: The calculator operates in 4 different modes: Time and Distance, Time and Pace, Distance and Pace, and Time and Heart Rate.
B89: Select the preferred mode by entering the appropriate number (1 through 4) in the Mode Entry Box.
B91: Daniels outlines the following general guidelines regarding total weekly point levels:
B92: [Novice High School - 50 points] [Advanced High School - 100 points] [College - 150 points] [Elite - 200 points]
B94: A couple of display controls for the Intensity Points Grid are located at the lower left of the Main section, including a metric option, and buttons to Hide/Show the entire Points Grid.
B97: Training Zones, Tempo Runs, and General Pace Guidance
B98: Using data from Table 7.1 in Daniels' 2nd Edition, the Tempo Pace table starts with a baseline 20 minute Threshold Pace run and adjusts the pace for Tempo Runs
B99: ranging from 25 to 60 minutes. Tempo paces shown are appropriate for the fitness level indicated by the race distance & time entered at the top of the worsheet.
B100: Daniels advises doing all your workouts based on current fitness level (in other words, a recent race performance), not on some hopeful future goal.
B102: Daniels Interval Split Times Calculator below the Tempo Pace Chart calculates even split times for key Daniels' Interval training paces,
B103: and has the option of displaying results in US/Imperial or Metric distances.
B105: The McMilanRunning.com Training Range Guidelines table outlines Greg McMillan's training ranges, and provides an alternative set of guidelines from a professional source
B106: for comparison. The race distance ranges defining each training type are quoted directly from McMillan's site. However, due to differences in race pace calculation methods,
B107: the actual pace ranges are only approximations and do not exactly match those on McMillan's site.
B109: The Joe Friel Training Zone Guidelines table outlines Joe Friel's training Zones, and provides a 2nd alternative set of guidelines from a professional source
B110: for comparison. The formulas for this section are based on the information on Joe's "Quick Guide to Training with Heart Rate, Power and Pace".
B111: The worksheet uses 90% of Heart Rate max for the default LTHR, and the calculated Lactate Threshold Pace as the default FTPa.
B112: If you do Joe's 30 minute test to determine your actual LTHR or FTPa, you can override the defaults with your actuals.
B115: Temperature and Weight Time Adjustments
B116: Temperature:
B117: The Adverse Impact of Temperature calculations are extracted from Table 10.1 in the 1st Edition of Daniels' book. This table was omitted in Daniels' 2nd Edition.
B118: Perhaps he found that performance loss due to heat was too variable to accurately predict. What ever the reason, I still find it interesting to have some idea how high
B119: temperatures affect running performance, even if the table results have a potential for a high degree of variability or error. I'm not saying for sure there is a lot of error,
B120: but Daniels must have had some reason for omitting this table in the 2nd edition. Daniels referenced durations representing marathon times in his table.
B121: I assume a similar slowdown is experienced for all racing distances.
B123: Weight:
B124: Curious how much faster you'd be if you dropped 5 or 10 pounds? The Projected Impact of Weight calculation will give you an estimate of that.
B125: As a general rule, performance will improve by about two seconds per mile for every pound of fat lost. But there's a limit. Lose too much weight, and you begin to lose muscle mass.
B126: A reading of 18.5 on the BMI scale is considered the lowest healthy weight. That's pretty dang skinny. I'm 6'3, and my weight at a BMI of 18.5 would be 148 lbs.
B127: The time adjustment for weight comes from information in Daniels and Gilbert's "Oxygen Power" booklet, published in 1979.
B128: The formula is; current weight times current VDOT divided by projected weight = projected VDOT. A few pounds can make quite a difference!
B130: Continuing down the worksheet are a couple sections for analyzing healthy weight ranges for athletes (BMI and Dr Stillman guidelines), and a table of Absolute VO2max calculations.
B132: ** Note that all calculations involving BMI will use a minimum BMI of 18.5. Any entries resulting in BMI values lower than 18.5 will be calculated at 18.5 **
B135: Weekly Intensity Distribution Chart
B136: The last section going down is the Intensity Distribution Chart, used to calculate by what percentage each type of training contributes to total weekly mileage. Too much speed / quality
B137: work invites burnout and/or injury. This table is designed to help develop a balanced distribution of the various types of training. Cursor over the Run Type Names in the table to see
B138: basic guidelines for the length or duration of each type of workout. Since not everyone runs the same types of workouts on the same days, a Day 1, Day 2, etc convention is used.
B139: These fields may be edited to days of the week, if preferred.
B141: The day with the greatest total miles will automatically be deemed the Long run and designated with an asterisk.
B142: The worksheet uses the total of all components from that day to calculate the long run percentage of weekly total mileage.
B145: Time Addition/Subtraction Calculator
B146: To the right of the Training Zons section is the Add & Subtract Time calculator. The pace averaging calculation within the Add section is intended for use when all splits are of equal distance,
B147: but will average any combination of times. The Multiplier (default is x1.0) can be used to multiply one or more entries by any desired factor. One use for this would be to enter a single
B148: split time, then set the multiplier to some number of desired repetitions. A total time for the number of reps set by the multiplyer will then be calculated.
B149: To change the multiplier just enter the new factor, the x symbol shows by default. As a reminder, the multiplier turns red anytime it is set to a value other than 1.0.
B152: Extended Race Time Projection Table
B153: To the right of the Time Addition/Subbtration calculator is the Extended Projection Table, a more complete listing of race time Projections for various distances. Included is an
B154: Age/Sex Grading Table of equivalent race efforts. Both the base age and comparison age (vs Age) can be edited to any age between 5 and 100, and designated as either
B155: male or female. This info doesn't come from Daniels, but it can be fun to compare your times with runners of different ages, your former self, and/or members of the opposite sex,
B156: to see who *really* ran the best effort! I used averaged factors for each 1 year age division, rather than using the entire data field from the 2015 Age Grading tables.
B157: Therefore, these results may differ slightly from other calculators based on the 2015 Age Grading tables.
B159: 2015 Open Class Standards Table
B160: To the right of the Extended Projection Table is a Table of Open Class Time Standards taken from the 2015 Age Grading Tables, maintained by Alan Jones. These times represent
B161: World Records and World Best times. Some of these times have been eclipsed since 2015, but to keep things simple I stuck with the original times from the tables.
B162: The times in the table are not locked, and can easily be edited if you desire to do so.
B164: You'll also notice a listing of distance equivalents for each distance in a very light font to the left of the Open Class Standards Table. I left this data slightly visible because it is used in
B165: some of the worksheet formulas. Due to its location, I was concerned if I made the list completely invisible, it may get accidentally erased if someone starts poking around with protection turned off.
B166: Besides, occasionlly I need to know what the exact equivalents are in miles for the KM, 1/2 Mar, and Marathon distances, and I find this list handy for that.
B168: Entry Time Age Grading and Adjustments
B169: Below the Extended Projection Table is the Adjusted Time calculator. The Baseline Time defaults to the Entry Time entered by the user at the top of the sheet,
B170: but can be overwritten with any time value. There is a button to restore the original Entry Time if needed.
B172: The Age Graded Time section calculates an equivalent time effort for a 25 year old open class runner with a BMI of 18.5 competing under optimal conditions.
B173: The Weight Change and Temperature sections calculate approximate time adustments for weight above BMI 18.5 and race temperatures greater than 60 degrees fahrenheit.
B174: The Combined Adjusted Time section combines the selected adjusments with the Entry Time. What you end up with is an Equivalent Effort.
B175: That is, a calculated time you might expect to run at your current fitness level, if you were 25, had a BMI of 18.5, and ran a race in perfect conditions.
B177: Peak Potential
B178: The Peak Potential section allows us to ponder a hypothetical maximum perfomance potential at current age and weight. This calculation is made by applying the user's BMI and
B179: age factors to the Open Standard (World Record) as recorded in the 2015 Age Grading Tables. Achieving close to this Peak Potential would represent an Elite level perfomance.
B180: If your current race results are not close to your calculated Peak Potential, that implies you still have room for improvement, even at your current age and weight.
B182: I make some general assupmtions for the Adjusted Time and Peak Potential calcs. One such assumption is that a BMI of 18.5 (the minimum
B183: recommended healthy weight) is the "ideal racing weight" for runners, and one would begin to lose aerobic capacity or strength if they dropped below that.
B184: Users should not place ultimate faith in these results. The intention is to give some general insight into potential max performance.
B186: In this section, Weight Grading is applied after Age Grading, therefore, this value will change depending on whether the Age Grading is enabled or disabled.
B188: ** Note that all calculations involving BMI will use a minimum BMI of 18.5. Any entries resulting in BMI values lower than 18.5 will be calculated at 18.5 **
B190: Misc Calculators
B191: The remaining sections at the lower right provide various miscellaneous calculations and US to metric / metric to US measurement conversions.
B194: References
B195: Original worksheet developed by Herman Nieuwendaal - herm@electricblues.com - 06/02/2006 | K195: ="This update is "&RIGHT('Daniels Tables'!G2,10) -> This update is Rev3.01.01 | N195: Dated: | O195: ='Daniels Tables'!R2 -> 2018-12-19
E196: Download the latest version at: | F196: http://www.electricblues.com/runpro.html
B198: Bibliography/Works Cited
B199: Daniels, Jack, and Jimmy Gilbert. Oxygen Power: Performance Tables for Distance Runners. Jack Daniels, Jimmy Gilbert c1979
B200: Daniels, Jack. Daniels' Running Formula (1nd Edition). Champaign, IL : Human Kinetics, c1998.
B201: Daniels, Jack. Daniels' Running Formula (2nd Edition). Champaign, IL : Human Kinetics, c2005.
B203: McMillan, Greg. McMillan's 6 Step Training System - Step #4: The 12 Key Workouts. McMillan Running Company, Inc. Copyright © 2006
C204: Website - | D204: http://www.mcmillanrunning.com | H204: Web Page Referenced - | J204: http://www.mcmillanrunning.com/training4.htm
B206: Friel, Joe. Quick Guide to Training with Heart Rate, Power and Pace.
C207: Website - | D207: http://www.joefrielsblog.com/ | H207: Web Page Referenced - | J207: Joe Friel's Quick Guide to Training with Heart Rate, Power and Pace
B209: Contributors
B210: Riegel, Pete - Developed the race time projection model used in this worksheet. T2=T1*(D2/D1)^1.06
C211: Founding Member, Association of Road Racing Statisticians. | I211: http://www.arrs.net><Riegelpete@aol.com
B213: Alan Jones - Maintains WMA/USATF Age Grade Tables. | I213: 2015 Age Grade Tables
B215: WMA - World Masters Association (Formerly WAVA) | I215: http://www.world-masters-athletics.org
B216: USATF Masters - USA Track and Field Age Grading | I216: http://usatfmasters.org/wp/2018/08/age-grading/
B217: IAAF - International Association of Athletics Federations | I217: http://www.iaaf.org
